Workbook

Sheet CoverSheet
A3: Gas Pipeline Businesses
A4: Price-Quality Regulation 1 October 2022 Reset
A5: Default Price Path Financial Model no Mitigation
A17: Published 31 May 2022

Sheet Description
A1: Description
A3: General Description
B4: This model serves for an illustrative purpose only, as it shows the results if there was no mitigation of economic asset stranding.
B5: By default athe accelerated depreciation is set to 1 in this model and a macro in sheet Output enables to derive equivalent real MAR increases.
B6: The Outputs from this model are used in AS Model to illustrate what an effect would Deferred Mitigation have.

Sheet Table of Contents
A1: Table of Contents
B4: Sheet Name | C4: Link
B5: Inputs | C5: Inputs
B6: GPB data | C6: Inputs for the selected supplier
B7: Timing | C7: Timing
C8: Inputs
C9: Calculations
C10: Outputs
B11: RAB | C11: Regulatory asset base
C12: Inputs
C13: Calculations
C14: Outputs
B15: Tax | C15: Tax calculations
C16: Inputs
C17: Calculations
C18: Outputs
B19: BBAR | C19: Building blocks allowable revenue
C20: Inputs
C21: Calculations
C22: Outputs
B23: Rev | C23: Revenue growth index
C24: Inputs
C25: Calculations
C26: Outputs
B27: MAR | C27: Maximum allowable revenue
C28: Inputs
C29: Calculations
C30: Outputs
B31: Outputs | C31: DPP reset output table
C32: Outputs
B33: Outputs to Chartbook | C33: Outputs to chartbook
C34: Reasons Paper Charts
C35: Chapter 4 tables
C36: Transmission Determination Tables & Values
C37: Distribution Determination Tables & Values
B38: Notes | C38: Model notes

Sheet Inputs
A1: Inputs | B1: Values, not time series | C1: Early base year | D1: Standard base year | E1: Gap year | F1: 1st BBAR year | G1: 2nd BBAR year | H1: 3rd BBAR year | I1: 4th BBAR year | J1: 5th BBAR year
A2: All input data is entered into this worksheet. | B2: Exceptions to the principle that an inputs sheet should not include anything other than inputs have this grey background.
A3: Name of supplier currently chosen as the focus of this workbook | C3: First Gas transmission
A4: Supplier number (inferred from chosen name above) | C4: =HLOOKUP(GPB_name,Inputs!$B$22:$G$23,2,FALSE) -> 5
A5: Supplier number (from Output sheet) | C5: =Outputs!B7 -> 5
A6: Inputs that are the same for all suppliers
A7: BBAR year ending in calendar year: | C7: =D7-1 -> 2020 | D7: =E7-1 -> 2021 | E7: =F7-1 -> 2022 | F7: 2023 | G7: =F7+1 -> 2024 | H7: =G7+1 -> 2025 | I7: =H7+1 -> 2026 | J7: =I7+1 -> 2027
A8: Forecast changes in CPI used for revaluations, June year-ends | D8: =[1]Output!G8 -> 0.03342884432 | E8: =[1]Output!H8 -> 0.063 | F8: =[1]Output!I8 -> 0.026 | G8: =[1]Output!J8 -> 0.023 | H8: =[1]Output!K8 -> 0.02 | I8: =[1]Output!L8 -> 0.02 | J8: =[1]Output!M8 -> 0.02
A9: Forecast changes in CPI used for revaluations, September year-ends | D9: =[1]Output!G9 -> 0.04933586338 | E9: =[1]Output!H9 -> 0.05 | F9: =[1]Output!I9 -> 0.025 | G9: =[1]Output!J9 -> 0.022 | H9: =[1]Output!K9 -> 0.02 | I9: =[1]Output!L9 -> 0.02 | J9: =[1]Output!M9 -> 0.02
A10: Forecast changes in the CPI element of the price path for GDB | D10: =[1]Output!G10 -> 0.01882640587 | E10: =[1]Output!H10 -> 0.01463882889 | F10: =[1]Output!I10 -> 0.05214947966 | G10: =[1]Output!J10 -> 0.04628530323 | H10: =[1]Output!K10 -> 0.02474373522 | I10: =[1]Output!L10 -> 0.02149215402 | J10: =[1]Output!M10 -> 0.02
A11: Forecast changes in the CPI element of the price path for GTB | D11: =[1]Output!G11 -> 0.02811532047 | E11: =[1]Output!H11 -> 0.05954901506 | F11: =[1]Output!I11 -> 0.03092122799 | G11: =[1]Output!J11 -> 0.02324453846 | H11: =[1]Output!K11 -> 0.02024799149 | I11: =[1]Output!L11 -> 0.02 | J11: =[1]Output!M11 -> 0.02
A12: Corporate tax rate | C12: 0.28 | D12: 0.28 | E12: 0.28 | F12: 0.28 | G12: 0.28 | H12: 0.28 | I12: 0.28 | J12: 0.28
A13: Days from mid-year to year-end | B13: 182
A14: Days from revenue date to year-end | B14: 148
A15: Day prior to start of the regulatory period | B15: 2022-09-30
A16: Vanilla WACC (67th percentile) | B16: 0.0614
A17: Cost of debt | B17: 0.0404
A18: Leverage | B18: 0.42
A19: Remaining asset life for additional assets before adjustment | B19: 45
A20: Industry-wide X factor | B20: 0
A21: Inputs that are specific to individual suppliers | I21: Selected supplier #: | J21: =Outputs!B7 -> 5 | K21: Value for selected supplier
A22: Name | B22: GasNet | C22: Powerco | D22: Vector | E22: First Gas distribution | F22: First Gas transmission | K22: =INDEX(B22:F22,,$J$21) -> First Gas transmission
A23: Supplier number | B23: 1 | C23: 2 | D23: 3 | E23: 4 | F23: 5
A24: Early base year adopted? | B24: FALSE | C24: FALSE | D24: FALSE | E24: FALSE | F24: FALSE | K24: =INDEX(B24:F24,,$J$21) -> FALSE
A25: Last day in the standard base year | B25: 2021-06-30 | C25: 2021-09-30 | D25: 2021-06-30 | E25: 2021-09-30 | F25: 2021-09-30 | K25: =INDEX(B25:F25,,$J$21) -> 2021-09-30
A26: Tax payable (payable) or deferred tax (deferred) | B26: deferred | C26: deferred | D26: deferred | E26: deferred | F26: payable | K26: payable
A27: Total revenue cap (TRC) or weighted avg price cap (WAPC) | B27: WAPC | C27: WAPC | D27: WAPC | E27: WAPC | F27: TRC_FQ | K27: TRC_FQ
A28: Adjustment factor (for accelerated depreciation) existing | B28: 1 | C28: 1 | D28: 1 | E28: 1 | F28: 1 | K28: 1
A29: Adjustment factor (for accelerated depreciation) additional | B29: =B28 -> 1 | C29: =C28 -> 1 | D29: 1 | E29: 1 | F29: 1 | K29: 1
A30: Initial conditions
A31: Opening RAB | B31: =[2]Output!B5 -> 24056 | C31: =[2]Output!C5 -> 388863.0303 | D31: =[2]Output!D5 -> 434256 | E31: =[2]Output!E5 -> 174405.1661 | F31: =[2]Output!F5 -> 849688.0929 | K31: =INDEX(B31:F31,,$J$21) -> 849688.0929
A32: Total depreciation | B32: =[2]Output!B6 -> 890 | C32: =[2]Output!C6 -> 16520.80123 | D32: =[2]Output!D6 -> 12684 | E32: =[2]Output!E6 -> 6273.133953 | F32: =[2]Output!F6 -> 34267.21374 | K32: =INDEX(B32:F32,,$J$21) -> 34267.21374
A33: Closing RAB | B33: =[2]Output!B7 -> 24943 | C33: =[2]Output!C7 -> 406139 | D33: =[2]Output!D7 -> 451131 | E33: =[2]Output!E7 -> 181908.4666 | F33: =[2]Output!F7 -> 874464.5955 | K33: 874464.5955
A34: Opening RAB excluding revaluations | B34: =[2]Output!B8 -> 21153 | C34: =[2]Output!C8 -> 347153.9267 | D34: =[2]Output!D8 -> 387877 | E34: =[2]Output!E8 -> 159463.3196 | F34: =[2]Output!F8 -> 0 | K34: 0
A35: Adjusted depreciation | B35: =[2]Output!B9 -> 756 | C35: =[2]Output!C9 -> 14618.99278 | D35: =[2]Output!D9 -> 11347 | E35: =[2]Output!E9 -> 5666.21179 | F35: =[2]Output!F9 -> 0 | K35: 0
A36: Tax depreciation | B36: =[2]Output!B10 -> 668 | C36: =[2]Output!C10 -> 19094.19586 | D36: =[2]Output!D10 -> 18496 | E36: =[2]Output!E10 -> 8024.564544 | F36: =[2]Output!F10 -> 22468.73376 | K36: 22468.73376
A37: Opening regulatory tax asset value | B37: =[2]Output!B11 -> 6332 | C37: =[2]Output!C11 -> 174476.9623 | D37: =[2]Output!D11 -> 178920 | E37: =[2]Output!E11 -> 71182.16614 | F37: =[2]Output!F11 -> 205340.1339 | K37: 205340.1339
A38: Amortisation of initial differences in asset values | B38: =[2]Output!B12 -> 475.3853565 | C38: =[2]Output!C12 -> 2286.643824 | D38: =[2]Output!D12 -> 2452.34375 | E38: =[2]Output!E12 -> 1682.628571 | F38: =[2]Output!F12 -> 0 | K38: 0
A39: Term credit spread differential allowance | B39: =[2]Output!B13 -> 0 | C39: =[2]Output!C13 -> 415.3212016 | D39: =[2]Output!D13 -> 394.7103671 | E39: =[2]Output!E13 -> 262.7097852 | F39: =[2]Output!F13 -> 1271.216537 | K39: 1271.216537
A40: Opening deferred tax balance | B40: =[2]Output!B14 -> -1402 | C40: =[2]Output!C14 -> -30580.636 | D40: =[2]Output!D14 -> -33959 | E40: =[2]Output!E14 -> -8906.824887 | F40: =[2]Output!F14 -> 0 | K40: 0
A41: Capital expenditure ~ value of commissioned assets | B41: =[2]Output!B15 -> 961 | C41: =[2]Output!C15 -> 15514.61337 | D41: =[2]Output!D15 -> 15572 | E41: =[2]Output!E15 -> 5437.82584 | F41: =[2]Output!F15 -> 18812.79207 | K41: 18812.79207
A42: Alternative X factor (leave blank if no alternative) | B42: -0.03307802073 | C42: -0.02156583497 | D42: 0.0317693898 | E42: -0.04740094103 | F42: -0.0324834029 | K42: =IF(ISBLANK(INDEX(B42:F42,,$J$21)),"blank",INDEX(B42:F42,,$J$21)) -> -0.0324834029
A43: DPP2 2022 values | B43: 4383.998268 | C43: 51435.56862 | D43: 50702.2772 | E43: 24646.15131 | F43: 131623.3864 | K43: =IF(ISBLANK(INDEX(B43:F43,,$J$21)),"blank",INDEX(B43:F43,,$J$21)) -> 131623.3864
A44: Operating expenditure
A45: Operating expenditure in year ending 2021 | K45: =INDEX(B45:F45,,$J$21) -> 0
A46: Operating expenditure in year ending 2022 | B46: ='[3]Reflation outputs'!B5 -> 2105.869235 | C46: ='[3]Reflation outputs'!C5 -> 19191.84016 | D46: ='[3]Reflation outputs'!D5 -> 14561.01945 | E46: ='[3]Reflation outputs'!E5 -> 9825.824075 | F46: ='[3]Reflation outputs'!F5 -> 49431.44087 | K46: 49431.44087
A47: Operating expenditure in year ending 2023 | B47: ='[3]Reflation outputs'!B6 -> 2553.489498 | C47: ='[3]Reflation outputs'!C6 -> 19977.41341 | D47: ='[3]Reflation outputs'!D6 -> 15402.43671 | E47: ='[3]Reflation outputs'!E6 -> 10562.23877 | F47: ='[3]Reflation outputs'!F6 -> 53512.75174 | K47: 53512.75174
A48: Operating expenditure in year ending 2024 | B48: ='[3]Reflation outputs'!B7 -> 2644.955245 | C48: ='[3]Reflation outputs'!C7 -> 20475.16567 | D48: ='[3]Reflation outputs'!D7 -> 15938.21291 | E48: ='[3]Reflation outputs'!E7 -> 11087.79684 | F48: ='[3]Reflation outputs'!F7 -> 55336.41136 | K48: 55336.41136
A49: Operating expenditure in year ending 2025 | B49: ='[3]Reflation outputs'!B8 -> 2722.37449 | C49: ='[3]Reflation outputs'!C8 -> 21057.76636 | D49: ='[3]Reflation outputs'!D8 -> 16028.18117 | E49: ='[3]Reflation outputs'!E8 -> 11550.22358 | F49: ='[3]Reflation outputs'!F8 -> 56654.08304 | K49: 56654.08304
A50: Operating expenditure in year ending 2026 | B50: ='[3]Reflation outputs'!B9 -> 2793.662096 | C50: ='[3]Reflation outputs'!C9 -> 21637.5593 | D50: ='[3]Reflation outputs'!D9 -> 16465.67508 | E50: ='[3]Reflation outputs'!E9 -> 11986.17028 | F50: ='[3]Reflation outputs'!F9 -> 58465.28188 | K50: 58465.28188
A51: Operating expenditure in year ending 2027 | B51: ='[3]Reflation outputs'!B10 -> 2866.778433 | C51: ='[3]Reflation outputs'!C10 -> 22150.62899 | D51: ='[3]Reflation outputs'!D10 -> 16951.96015 | E51: ='[3]Reflation outputs'!E10 -> 12428.0251 | F51: ='[3]Reflation outputs'!F10 -> 59738.56089 | K51: 59738.56089
A53: Constant price revenue growth
A54: Constant price revenue growth in year ending 2021 | K54: =INDEX(B54:F54,,$J$21) -> 0
A55: Constant price revenue growth in year ending 2022 | B55: =[4]Output!B3 -> -0.001003335731 | C55: =[4]Output!C3 -> 0.01365074927 | D55: =[4]Output!D3 -> 0.01402179604 | E55: =[4]Output!E3 -> 0.02595745483 | K55: =INDEX(B55:F55,,$J$21) -> 0
A56: Constant price revenue growth in year ending 2023 | B56: =[4]Output!B4 -> -0.00292858236 | C56: =[4]Output!C4 -> 0.01423886913 | D56: =[4]Output!D4 -> 0.01548673721 | E56: =[4]Output!E4 -> 0.001446936929 | K56: =INDEX(B56:F56,,$J$21) -> 0
A57: Constant price revenue growth in year ending 2024 | B57: =[4]Output!B5 -> -0.003206394073 | C57: =[4]Output!C5 -> 0.01347482345 | D57: =[4]Output!D5 -> 0.01032253435 | E57: =[4]Output!E5 -> 0.001283574806 | K57: 0
A58: Constant price revenue growth in year ending 2025 | B58: =[4]Output!B6 -> -0.003464122892 | C58: =[4]Output!C6 -> 0.01273583812 | D58: =[4]Output!D6 -> 0.01021189474 | E58: =[4]Output!E6 -> 0.001123060514 | K58: 0
A59: Constant price revenue growth in year ending 2026 | B59: =[4]Output!B7 -> -0.003702911872 | C59: =[4]Output!C7 -> 0.01202310459 | D59: =[4]Output!D7 -> 0.0101010024 | E59: =[4]Output!E7 -> 0.0009656319629 | K59: 0
A60: Constant price revenue growth in year ending 2027 | B60: =[4]Output!B8 -> -0.00392390725 | C60: =[4]Output!C8 -> 0.01134481886 | D60: =[4]Output!D8 -> 0.01003288107 | E60: =[4]Output!E8 -> 0.000811366982 | K60: 0
A61: Constant price revenue growth in year ending 2028 | K61: 0
A62: Value of commissioned assets | B62: Data for first row of value of commissioned assets linked differently from rest of panel
A63: Value of commissioned assets, yr ending 2021 | B63: =B41 -> 961 | C63: =C41 -> 15514.61337 | D63: 15572 | E63: 5437.82584 | F63: 18812.79207 | K63: =INDEX(B63:F63,,$J$21) -> 18812.79207
A64: Value of commissioned assets, yr ending 2022 | B64: ='[3]Reflation outputs'!B14 -> 831.3206597 | C64: ='[3]Reflation outputs'!C14 -> 18183.28609 | D64: ='[3]Reflation outputs'!D14 -> 7573.743649 | E64: ='[3]Reflation outputs'!E14 -> 21122.86143 | F64: ='[3]Reflation outputs'!F14 -> 37106.20045 | K64: 37106.20045
A65: Value of commissioned assets, yr ending 2023 | B65: ='[3]Reflation outputs'!B15 -> 932.2514037 | C65: ='[3]Reflation outputs'!C15 -> 19010.71508 | D65: ='[3]Reflation outputs'!D15 -> 6788.752246 | E65: ='[3]Reflation outputs'!E15 -> 13894.17236 | F65: ='[3]Reflation outputs'!F15 -> 40302.49786 | K65: 40302.49786
A66: Value of commissioned assets, yr ending 2024 | B66: ='[3]Reflation outputs'!B16 -> 1001.142265 | C66: ='[3]Reflation outputs'!C16 -> 19197.17854 | D66: ='[3]Reflation outputs'!D16 -> 6162.44264 | E66: ='[3]Reflation outputs'!E16 -> 14098.28233 | F66: ='[3]Reflation outputs'!F16 -> 47383.78588 | K66: 47383.78588
A67: Value of commissioned assets, yr ending 2025 | B67: ='[3]Reflation outputs'!B17 -> 1035.88761 | C67: ='[3]Reflation outputs'!C17 -> 20204.48326 | D67: ='[3]Reflation outputs'!D17 -> 6867.068833 | E67: ='[3]Reflation outputs'!E17 -> 14182.29891 | F67: ='[3]Reflation outputs'!F17 -> 40281.49669 | K67: 40281.49669
A68: Value of commissioned assets, yr ending 2026 | B68: ='[3]Reflation outputs'!B18 -> 1022.394124 | C68: ='[3]Reflation outputs'!C18 -> 22084.79006 | D68: ='[3]Reflation outputs'!D18 -> 7880.523059 | E68: ='[3]Reflation outputs'!E18 -> 14168.41741 | F68: ='[3]Reflation outputs'!F18 -> 42695.22192 | K68: 42695.22192
A69: Value of commissioned assets, yr ending 2027 | B69: ='[3]Reflation outputs'!B19 -> 1050.70063 | C69: ='[3]Reflation outputs'!C19 -> 22259.48831 | D69: ='[3]Reflation outputs'!D19 -> 8310.031422 | E69: ='[3]Reflation outputs'!E19 -> 14595.55696 | F69: ='[3]Reflation outputs'!F19 -> 45010.91881 | K69: 45010.91881
A70: Value of commissioned assets, yr ending 2028 | K70: 0
A71: Name | B71: GasNet | C71: Powerco | D71: Vector | E71: First Gas distribution | F71: First Gas transmission
A72: Value of disposed assets
A73: Value of disposed assets, yr ending 2020 | B73: =[2]Output!B17 -> 0 | C73: =[2]Output!C17 -> 587 | D73: =[2]Output!D17 -> 48 | E73: =[2]Output!E17 -> 0 | F73: =[2]Output!F17 -> 53.00725 | K73: 53.00725
A74: Value of disposed assets, yr ending 2021 | B74: =[2]Output!B18 -> 0 | C74: =[2]Output!C18 -> 119.5918062 | D74: =[2]Output!D18 -> 280 | E74: =[2]Output!E18 -> 118.5853312 | F74: =[2]Output!F18 -> 1634.348379 | K74: 1634.348379
A75: Value of disposed assets, yr ending 2022 | B75: =[2]Output!B19 -> 5.052591791 | C75: =[2]Output!C19 -> 360.5917861 | D75: =[2]Output!D19 -> 105.0678636 | E75: =[2]Output!E19 -> 31.67792673 | F75: =[2]Output!F19 -> 466.0617575 | K75: 466.0617575
A76: Value of disposed assets, yr ending 2023 | B76: =[2]Output!B20 -> 5.183959177 | C76: =[2]Output!C20 -> 369.6065808 | D76: =[2]Output!D20 -> 107.7996281 | E76: =[2]Output!E20 -> 32.4698749 | F76: =[2]Output!F20 -> 477.7133014 | K76: 477.7133014
A77: Value of disposed assets, yr ending 2024 | B77: =[2]Output!B21 -> 5.303190238 | C77: =[2]Output!C21 -> 377.7379256 | D77: =[2]Output!D21 -> 110.2790195 | E77: =[2]Output!E21 -> 33.18421215 | F77: =[2]Output!F21 -> 488.2229941 | K77: 488.2229941
A78: Value of disposed assets, yr ending 2025 | B78: =[2]Output!B22 -> 5.409254043 | C78: =[2]Output!C22 -> 385.2926841 | D78: =[2]Output!D22 -> 112.4845999 | E78: =[2]Output!E22 -> 33.84789639 | F78: =[2]Output!F22 -> 497.987454 | K78: 497.987454
A79: Value of disposed assets, yr ending 2026 | B79: =[2]Output!B23 -> 5.517439124 | C79: =[2]Output!C23 -> 392.9985377 | D79: =[2]Output!D23 -> 114.7342919 | E79: =[2]Output!E23 -> 34.52485432 | F79: =[2]Output!F23 -> 507.947203 | K79: 507.947203
A80: Value of disposed assets, yr ending 2027 | B80: =[2]Output!B24 -> 5.627787907 | C80: =[2]Output!C24 -> 400.8585085 | D80: =[2]Output!D24 -> 117.0289778 | E80: =[2]Output!E24 -> 35.21535141 | F80: =[2]Output!F24 -> 518.1061471 | K80: 518.1061471
A81: Value of disposed assets, yr ending 2028 | B81: =[2]Output!B25 -> 5.740343665 | C81: =[2]Output!C25 -> 408.8756787 | D81: =[2]Output!D25 -> 119.3695573 | E81: =[2]Output!E25 -> 35.91965843 | F81: =[2]Output!F25 -> 528.46827 | K81: 528.46827
A82: Other regulated income
A83: Other regulated income, yr ending 2023 | B83: =[2]Output!B28 -> 48.35930118 | C83: =[2]Output!C28 -> 614.3067864 | D83: =[2]Output!D28 -> -106.0844096 | E83: =[2]Output!E28 -> 276.6205741 | K83: 0
A84: Other regulated income, yr ending 2024 | B84: =[2]Output!B29 -> 49.47156511 | C84: =[2]Output!C29 -> 627.8215357 | D84: =[2]Output!D29 -> -108.524351 | E84: =[2]Output!E29 -> 282.7062267 | K84: 0
A85: Other regulated income, yr ending 2025 | B85: =[2]Output!B30 -> 50.46099641 | C85: =[2]Output!C30 -> 640.3779664 | D85: =[2]Output!D30 -> -110.694838 | E85: =[2]Output!E30 -> 288.3603512 | K85: 0
A86: Other regulated income, yr ending 2026 | B86: =[2]Output!B31 -> 51.47021634 | C86: =[2]Output!C31 -> 653.1855257 | D86: =[2]Output!D31 -> -112.9087348 | E86: =[2]Output!E31 -> 294.1275583 | K86: 0
A87: Other regulated income, yr ending 2027 | B87: =[2]Output!B32 -> 52.49962066 | C87: =[2]Output!C32 -> 666.2492362 | D87: =[2]Output!D32 -> -115.1669095 | E87: =[2]Output!E32 -> 300.0101094 | K87: 0
A88: Other regulated income, yr ending 2028 | B88: =[2]Output!B33 -> 53.54961308 | C88: =[2]Output!C33 -> 679.5742209 | D88: =[2]Output!D33 -> -117.4702477 | E88: =[2]Output!E33 -> 306.0103116 | K88: 0

Sheet GPB data
A1: Inputs for the selected supplier | B1: Values, not time series | C1: Early base year | D1: Standard base year | E1: Gap year | F1: 1st BBAR or Pricing year | G1: 2nd BBAR or Pricing year | H1: 3rd BBAR or Pricing year | I1: 4th BBAR or Pricing year | J1: 5th BBAR or Pricing year
A2: Data from the Inputs sheet that relates to the selected supplier. The supplier's name is user-selected in cell C3 on the Inputs sheet. | C2: =TEXT(EOMONTH($B$17+1,-25)+1,"dd.mm.yy") & " to " & TEXT(EOMONTH($B$17,-12),"dd.mm.yy") -> 01.10.19 to 30.09.20 | D2: =TEXT(EOMONTH($B$17+1,-13)+1,"dd.mm.yy") & " to " & TEXT(EOMONTH($B$17,0),"dd.mm.yy") -> 01.10.20 to 30.09.21 | E2: =TEXT(EOMONTH($B$17+1,-1)+1,"dd.mm.yy") & " to " & TEXT(EOMONTH($B$17,12),"dd.mm.yy") -> 01.10.21 to 30.09.22 | F2: =TEXT(EOMONTH($B$17+1,11)+1,"dd.mm.yy") & " to " & TEXT(EOMONTH($B$17,24),"dd.mm.yy") -> 01.10.22 to 30.09.23 | G2: =TEXT(EOMONTH($B$17+1,23)+1,"dd.mm.yy") & " to " & TEXT(EOMONTH($B$17,36),"dd.mm.yy") -> 01.10.23 to 30.09.24 | H2: =TEXT(EOMONTH($B$17+1,35)+1,"dd.mm.yy") & " to " & TEXT(EOMONTH($B$17,48),"dd.mm.yy") -> 01.10.24 to 30.09.25 | I2: =TEXT(EOMONTH($B$17+1,47)+1,"dd.mm.yy") & " to " & TEXT(EOMONTH($B$17,60),"dd.mm.yy") -> 01.10.25 to 30.09.26 | J2: =TEXT(EOMONTH($B$17+1,59)+1,"dd.mm.yy") & " to " & TEXT(EOMONTH($B$17,72),"dd.mm.yy") -> 01.10.26 to 30.09.27
A3: Supplier | J3: =GPB_name -> First Gas transmission
A4: Supplier number | C4: =Inputs!C5 -> 5
A5: General data
A6: Non business-specific single inputs
A7: =Inputs!A16 -> Vanilla WACC (67th percentile) | B7: =Inputs!B16 -> 0.0614
A8: =Inputs!A17 -> Cost of debt | B8: =Inputs!B17 -> 0.0404
A9: =Inputs!A18 -> Leverage | B9: =Inputs!B18 -> 0.42
A10: =Inputs!A19 -> Remaining asset life for additional assets before adjustment | B10: =Inputs!B19 -> 45 | C10: years
A11: =Inputs!A20 -> Industry-wide X factor | B11: =Inputs!B20 -> 0
A12: =Inputs!A13 -> Days from mid-year to year-end | B12: =Inputs!B13 -> 182 | C12: days
A13: =Inputs!A14 -> Days from revenue date to year-end | B13: =Inputs!B14 -> 148 | C13: days
A14: =Inputs!A15 -> Day prior to start of the regulatory period | B14: =Inputs!B15 -> 2022-09-30
A15: General time-series data
A16: Early base year adopted? | B16: =Inputs!K24 -> FALSE
A17: Last day in the standard base year | B17: =Inputs!K25 -> 2021-09-30
A18: BBAR year ending in calendar year: | C18: =Inputs!C7 -> 2020 | D18: =Inputs!D7 -> 2021 | E18: =Inputs!E7 -> 2022 | F18: =Inputs!F7 -> 2023 | G18: =Inputs!G7 -> 2024 | H18: =Inputs!H7 -> 2025 | I18: =Inputs!I7 -> 2026 | J18: =Inputs!J7 -> 2027
A19: =Inputs!A8 -> Forecast changes in CPI used for revaluations, June year-ends | D19: =Inputs!D8 -> 0.03342884432 | E19: =Inputs!E8 -> 0.063 | F19: =Inputs!F8 -> 0.026 | G19: =Inputs!G8 -> 0.023 | H19: =Inputs!H8 -> 0.02 | I19: =Inputs!I8 -> 0.02 | J19: =Inputs!J8 -> 0.02
A20: =Inputs!A9 -> Forecast changes in CPI used for revaluations, September year-ends | D20: =Inputs!D9 -> 0.04933586338 | E20: =Inputs!E9 -> 0.05 | F20: =Inputs!F9 -> 0.025 | G20: =Inputs!G9 -> 0.022 | H20: =Inputs!H9 -> 0.02 | I20: =Inputs!I9 -> 0.02 | J20: =Inputs!J9 -> 0.02
A21: =Inputs!A10 -> Forecast changes in the CPI element of the price path for GDB | F21: =Inputs!F10 -> 0.05214947966 | G21: =Inputs!G10 -> 0.04628530323 | H21: =Inputs!H10 -> 0.02474373522 | I21: =Inputs!I10 -> 0.02149215402 | J21: =Inputs!J10 -> 0.02
A22: =Inputs!A11 -> Forecast changes in the CPI element of the price path for GTB | F22: =Inputs!F11 -> 0.03092122799 | G22: =Inputs!G11 -> 0.02324453846 | H22: =Inputs!H11 -> 0.02024799149 | I22: =Inputs!I11 -> 0.02 | J22: =Inputs!J11 -> 0.02
A23: =Inputs!A12 -> Corporate tax rate | C23: =Inputs!C12 -> 0.28 | D23: =Inputs!D12 -> 0.28 | E23: =Inputs!E12 -> 0.28 | F23: =Inputs!F12 -> 0.28 | G23: =Inputs!G12 -> 0.28 | H23: =Inputs!H12 -> 0.28 | I23: =Inputs!I12 -> 0.28 | J23: =Inputs!J12 -> 0.28
A24: Business-specific data
A25: BBAR year ending in calendar year: | D25: =D$18 -> 2021 | E25: =E$18 -> 2022 | F25: 2023 | G25: 2024 | H25: 2025 | I25: 2026 | J25: 2027
A26: ="Forecast changes in CPI used for revaluations, " & TEXT(B17, "mmm") & " year-ends" -> Forecast changes in CPI used for revaluations, Sep year-ends | D26: =IF(MONTH($B$17)=6,D19,D20) -> 0.04933586338 | E26: =IF(MONTH($B$17)=6,E19,E20) -> 0.05 | F26: 0.025 | G26: 0.022 | H26: 0.02 | I26: 0.02 | J26: 0.02
A27: CPI price-path | D27: =IF(MONTH($B$17)=6,D21,D22) -> 0 | E27: =IF(MONTH($B$17)=6,E21,E22) -> 0 | F27: =IF(Scenario=5,F22,F21) -> 0.03092122799 | G27: 0.02324453846 | H27: 0.02024799149 | I27: 0.02 | J27: 0.02
A28: Year-end timing, tax approach and form of control
A29: =Inputs!A26 -> Tax payable (payable) or deferred tax (deferred) | B29: =Inputs!K26 -> payable
A30: =Inputs!A27 -> Total revenue cap (TRC) or weighted avg price cap (WAPC) | B30: =Inputs!K27 -> TRC_FQ
A31: Adjustment factor (for accelerated depreciation) existing | B31: =Inputs!K28 -> 1
A32: Adjustment factor (for accelerated depreciation) additional | B32: =Inputs!K29 -> 1
C33: =C1 -> Early base year | D33: =D1 -> Standard base year
A34: =Inputs!A31 -> Opening RAB | B34: =Inputs!K31 -> 849688.0929 | C34: =IF(EarlyBaseYear,B34,"~") -> ~ | D34: =IF(EarlyBaseYear,"~",B34) -> 849688.0929
A35: =Inputs!A32 -> Total depreciation | B35: =Inputs!K32 -> 34267.21374 | C35: ~ | D35: 34267.21374
A36: =Inputs!A33 -> Closing RAB | B36: =Inputs!K33 -> 874464.5955 | C36: ~ | D36: 874464.5955
A37: =Inputs!A34 -> Opening RAB excluding revaluations | B37: =Inputs!K34 -> 0 | C37: ~ | D37: 0
A38: =Inputs!A35 -> Adjusted depreciation | B38: =Inputs!K35 -> 0 | C38: ~ | D38: 0
A39: =Inputs!A36 -> Tax depreciation | B39: =Inputs!K36 -> 22468.73376 | C39: ~ | D39: 22468.73376
A40: =Inputs!A37 -> Opening regulatory tax asset value | B40: =Inputs!K37 -> 205340.1339 | C40: ~ | D40: 205340.1339
A41: =Inputs!A39 -> Term credit spread differential allowance | B41: =IF(Inputs!K39>0,Inputs!K39,0) -> 1271.216537 | C41: ~ | D41: =IF(EarlyBaseYear,"~",B41) -> 1271.216537
A42: =Inputs!A40 -> Opening deferred tax balance | B42: =Inputs!K40 -> 0 | C42: ~ | D42: =IF(EarlyBaseYear,"~",B42) -> 0
A43: =Inputs!A38 -> Amortisation of initial differences in asset values | B43: =Inputs!K38 -> 0
A44: Alternative X factor (insert "blank" if no alternative) | B44: =Inputs!K42 -> -0.0324834029
A45: DPP2 2022 prices | B45: =Inputs!K43 -> 131623.3864
A46: Operating expenditure
A47: =Inputs!A45 -> Operating expenditure in year ending 2021 | B47: =Inputs!K45 -> 0
A48: =Inputs!A46 -> Operating expenditure in year ending 2022 | B48: =Inputs!K46 -> 49431.44087
A49: =Inputs!A47 -> Operating expenditure in year ending 2023 | B49: =Inputs!K47 -> 53512.75174 | C49: 1st BBAR year
A50: =Inputs!A48 -> Operating expenditure in year ending 2024 | B50: =Inputs!K48 -> 55336.41136
A51: =Inputs!A49 -> Operating expenditure in year ending 2025 | B51: =Inputs!K49 -> 56654.08304
A52: =Inputs!A50 -> Operating expenditure in year ending 2026 | B52: =Inputs!K50 -> 58465.28188
A53: =Inputs!A51 -> Operating expenditure in year ending 2027 | B53: =Inputs!K51 -> 59738.56089
A55: Operating expenditure in each year | D55: =TRANSPOSE(B47:B53) -> 0 | E55: 49431.44087 | F55: 53512.75174 | G55: 55336.41136 | H55: 56654.08304 | I55: 58465.28188 | J55: 59738.56089
A56: Constant price revenue growth
A58: =Inputs!A54 -> Constant price revenue growth in year ending 2021 | B58: =Inputs!K54 -> 0
A59: =Inputs!A55 -> Constant price revenue growth in year ending 2022 | B59: =Inputs!K55 -> 0
A60: =Inputs!A56 -> Constant price revenue growth in year ending 2023 | B60: =Inputs!K56 -> 0 | C60: 1st pricing year
A61: =Inputs!A57 -> Constant price revenue growth in year ending 2024 | B61: =Inputs!K57 -> 0
A62: =Inputs!A58 -> Constant price revenue growth in year ending 2025 | B62: =Inputs!K58 -> 0
A63: =Inputs!A59 -> Constant price revenue growth in year ending 2026 | B63: =Inputs!K59 -> 0
A64: =Inputs!A60 -> Constant price revenue growth in year ending 2027 | B64: =Inputs!K60 -> 0
A65: =Inputs!A61 -> Constant price revenue growth in year ending 2028 | B65: =Inputs!K61 -> 0
A66: Constant price revenue growth in each year | D66: =TRANSPOSE(B58:B64) -> 0 | E66: 0 | F66: 0 | G66: 0 | H66: 0 | I66: 0 | J66: 0
A67: Value of commissioned assets
A68: =Inputs!A63 -> Value of commissioned assets, yr ending 2021 | B68: =Inputs!K63 -> 18812.79207
A69: =Inputs!A64 -> Value of commissioned assets, yr ending 2022 | B69: =Inputs!K64 -> 37106.20045
A70: =Inputs!A65 -> Value of commissioned assets, yr ending 2023 | B70: =Inputs!K65 -> 40302.49786 | C70: 1st BBAR year
A71: =Inputs!A66 -> Value of commissioned assets, yr ending 2024 | B71: =Inputs!K66 -> 47383.78588
A72: =Inputs!A67 -> Value of commissioned assets, yr ending 2025 | B72: =Inputs!K67 -> 40281.49669
A73: =Inputs!A68 -> Value of commissioned assets, yr ending 2026 | B73: =Inputs!K68 -> 42695.22192
A74: =Inputs!A69 -> Value of commissioned assets, yr ending 2027 | B74: =Inputs!K69 -> 45010.91881
A75: =Inputs!A70 -> Value of commissioned assets, yr ending 2028 | B75: =Inputs!K70 -> 0
A76: Value of commissioned assets in each year | D76: =TRANSPOSE(B68:B75) -> 18812.79207 | E76: 37106.20045 | F76: 40302.49786 | G76: 47383.78588 | H76: 40281.49669 | I76: 42695.22192 | J76: 45010.91881
A77: Disposed assets
A78: =Inputs!A73 -> Value of disposed assets, yr ending 2020 | B78: =Inputs!K73 -> 53.00725
A79: =Inputs!A74 -> Value of disposed assets, yr ending 2021 | B79: =Inputs!K74 -> 1634.348379
A80: =Inputs!A75 -> Value of disposed assets, yr ending 2022 | B80: =Inputs!K75 -> 466.0617575
A81: =Inputs!A76 -> Value of disposed assets, yr ending 2023 | B81: =Inputs!K76 -> 477.7133014 | C81: 1st BBAR year
A82: =Inputs!A77 -> Value of disposed assets, yr ending 2024 | B82: =Inputs!K77 -> 488.2229941
A83: =Inputs!A78 -> Value of disposed assets, yr ending 2025 | B83: =Inputs!K78 -> 497.987454
A84: =Inputs!A79 -> Value of disposed assets, yr ending 2026 | B84: =Inputs!K79 -> 507.947203
A85: =Inputs!A80 -> Value of disposed assets, yr ending 2027 | B85: =Inputs!K80 -> 518.1061471
A86: =Inputs!A81 -> Value of disposed assets, yr ending 2028 | B86: =Inputs!K81 -> 528.46827
A87: Value of disposed assets in each year | C87: =TRANSPOSE(B78:B85) -> 53.00725 | D87: 1634.348379 | E87: 466.0617575 | F87: 477.7133014 | G87: 488.2229941 | H87: 497.987454 | I87: 507.947203 | J87: 518.1061471
A88: Other regulated income
A89: =Inputs!A83 -> Other regulated income, yr ending 2023 | B89: =Inputs!K83 -> 0 | C89: 1st BBAR year
A90: =Inputs!A84 -> Other regulated income, yr ending 2024 | B90: =Inputs!K84 -> 0
A91: =Inputs!A85 -> Other regulated income, yr ending 2025 | B91: =Inputs!K85 -> 0
A92: =Inputs!A86 -> Other regulated income, yr ending 2026 | B92: =Inputs!K86 -> 0
A93: =Inputs!A87 -> Other regulated income, yr ending 2027 | B93: =Inputs!K87 -> 0
A94: =Inputs!A88 -> Other regulated income, yr ending 2028 | B94: =Inputs!K88 -> 0
A95: Other regulated income in each year | F95: =TRANSPOSE(B89:B93) -> 0 | G95: 0 | H95: 0 | I95: 0 | J95: 0

Sheet Timing
A1: Timing | F1: 1st BBAR year | G1: 2nd BBAR year | H1: 3rd BBAR year | I1: 4th BBAR year | J1: 5th BBAR year
A2: Calculations related to timing
A3: Inputs
A4: Days from mid-year to year-end | C4: ='GPB data'!B12 -> 182
A5: Days from revenue date to year-end | C5: ='GPB data'!B13 -> 148
A6: Vanilla WACC (67th percentile) | C6: =WACC -> 0.0614
A7: ='GPB data'!A17 -> Last day in the standard base year | C7: ='GPB data'!B17 -> 2021-09-30
A8: ='GPB data'!A14 -> Day prior to start of the regulatory period | C8: ='GPB data'!B14 -> 2022-09-30
A9: Calculations
A10: Year-end of 1st BBAR year | C10: =EOMONTH(C7,24) -> 2023-09-30
A11: TFrev for MAR calculations | C11: =(1+$C$6)^(C5/365) -> 1.024456298 | D11: Intra-year timing factor: discount from revenue date to end of year values
A12: Number of days between mid-period and revenue date | C12: =C4-C5 -> 34
F13: 1st BBAR year | G13: 2nd BBAR year | H13: 3rd BBAR year | I13: 4th BBAR year | J13: 5th BBAR year
A14: BBAR year ending in calendar year: | F14: ='GPB data'!F18 -> 2023 | G14: ='GPB data'!G18 -> 2024 | H14: ='GPB data'!H18 -> 2025 | I14: ='GPB data'!I18 -> 2026 | J14: ='GPB data'!J18 -> 2027
A15: Date of the end of the BBAR year | F15: =EOMONTH(C$7,24) -> 2023-09-30 | G15: =EOMONTH(F15,12) -> 2024-09-30 | H15: 2025-09-30 | I15: 2026-09-30 | J15: 2027-09-30
A16: Date of the start of the BBAR year | F16: =EOMONTH(C$7,12) -> 2022-09-30 | G16: 2023-09-30 | H16: 2024-09-30 | I16: 2025-09-30 | J16: 2026-09-30
A17: Number of days in the BBAR year | F17: =F15-F16 -> 365 | G17: 366 | H17: 365 | I17: 365 | J17: 365
A18: Date of the end of the BBAR period | F18: =EOMONTH(C7,24) -> 2023-09-30 | G18: =EOMONTH(F18,12) -> 2024-09-30 | H18: =EOMONTH(G18,12) -> 2025-09-30 | I18: =EOMONTH(H18,12) -> 2026-09-30 | J18: =EOMONTH(C8,48) -> 2026-09-30
A19: Date of the start of the BBAR period | F19: =C8 -> 2022-09-30 | G19: =F18 -> 2023-09-30 | H19: =G18 -> 2024-09-30 | I19: =H18 -> 2025-09-30 | J19: =I18 -> 2026-09-30
A20: Number of days in the BBAR period | F20: =F18-F19 -> 365 | G20: 366 | H20: 365 | I20: 365 | J20: 0
A21: Number of days in the latter half of the BBAR period | F21: =ROUNDDOWN(F20/2,0) -> 182 | G21: 183 | H21: 182 | I21: 182 | J21: 0
A22: Mid period date | F22: =F18-F21 -> 2023-04-01 | G22: 2024-03-31 | H22: 2025-04-01 | I22: 2026-04-01 | J22: 2026-09-30
A23: Tax date | F23: =F18-F21 -> 2023-04-01 | G23: 2024-03-31 | H23: 2025-04-01 | I23: 2026-04-01 | J23: 2026-09-30
A24: Number days between tax date and period-end | F24: =F18-F23 -> 182 | G24: 183 | H24: 182 | I24: 182 | J24: 0
A25: Number days between revenue date and period-end | F25: =F21-$C$12 -> 148 | G25: 149 | H25: 148 | I25: 148 | J25: -34
A26: Outputs
A27: TFrev for MAR calculations | C27: =$C$11 -> 1.024456298
A28: Number of days in the BBAR period | F28: =F20 -> 365 | G28: 366 | H28: 365 | I28: 365 | J28: 0
A29: Proportion of building blocks year that is in PV period | F29: =F28/F17 -> 1 | G29: 1 | H29: 1 | I29: 1 | J29: 0
A30: TFmid | F30: =(1+$C$6)^(F21/F17) -> 1.030158596 | G30: 1.03024269 | H30: 1.030158596 | I30: 1.030158596 | J30: 1
A31: TFtax | F31: =(1+$C$6)^(F24/F17) -> 1.030158596 | G31: 1.03024269 | H31: 1.030158596 | I31: 1.030158596 | J31: 1
A32: TFrev | F32: =(1+$C$6)^(F25/F17) -> 1.024456298 | G32: =(1+$C$6)^(G25/G17) -> 1.024555464 | H32: 1.024456298 | I32: 1.024456298 | J32: 0.9944646401

Sheet Diag
A2: Gas Pipeline Businesses - DPP reset - Years in the next regulatory period
B4: first day in quarter | C4: =EOMONTH(C5,-3)+1 -> 2019-10-01 | D4: 2020-01-01 | E4: 2020-04-01 | F4: 2020-07-01 | G4: 2020-10-01 | H4: 2021-01-01 | I4: 2021-04-01 | J4: 2021-07-01 | K4: 2021-10-01 | L4: =EOMONTH(L5,-3)+1 -> 2022-01-01 | M4: =EOMONTH(M5,-3)+1 -> 2022-04-01 | N4: =EOMONTH(N5,-3)+1 -> 2022-07-01 | O4: 2022-10-01 | P4: 2023-01-01 | Q4: 2023-04-01 | R4: 2023-07-01 | S4: 2023-10-01 | T4: 2024-01-01 | U4: 2024-04-01 | V4: 2024-07-01 | W4: 2024-10-01 | X4: 2025-01-01 | Y4: 2025-04-01 | Z4: 2025-07-01 | AA4: 2025-10-01 | AB4: 2026-01-01 | AC4: 2026-04-01 | AD4: 2026-07-01 | AE4: 2026-10-01 | AF4: 2027-01-01 | AG4: 2027-04-01 | AH4: 2027-07-01 | AI4: 2027-10-01 | AJ4: 2028-01-01 | AK4: 2028-04-01
B5: last day in quarter | C5: 2019-12-31 | D5: =EOMONTH(C5,3) -> 2020-03-31 | E5: =EOMONTH(D5,3) -> 2020-06-30 | F5: 2020-09-30 | G5: 2020-12-31 | H5: 2021-03-31 | I5: 2021-06-30 | J5: 2021-09-30 | K5: 2021-12-31 | L5: 2022-03-31 | M5: 2022-06-30 | N5: 2022-09-30 | O5: 2022-12-31 | P5: 2023-03-31 | Q5: 2023-06-30 | R5: 2023-09-30 | S5: 2023-12-31 | T5: 2024-03-31 | U5: 2024-06-30 | V5: 2024-09-30 | W5: 2024-12-31 | X5: 2025-03-31 | Y5: 2025-06-30 | Z5: 2025-09-30 | AA5: 2025-12-31 | AB5: 2026-03-31 | AC5: 2026-06-30 | AD5: 2026-09-30 | AE5: 2026-12-31 | AF5: 2027-03-31 | AG5: 2027-06-30 | AH5: 2027-09-30 | AI5: 2027-12-31 | AJ5: 2028-03-31 | AK5: 2028-06-30
A6: Columns in the RAB, Tax & BBAR sheets
C8: C | G8: D | K8: E | O8: F | S8: G | W8: H | AA8: I | AE8: J
B10: Last month in the quarter | C10: =C5 -> 2019-12-31 | D10: =D5 -> 2020-03-31 | E10: 2020-06-30 | F10: 2020-09-30 | G10: 2020-12-31 | H10: 2021-03-31 | I10: 2021-06-30 | J10: 2021-09-30 | K10: 2021-12-31 | L10: 2022-03-31 | M10: 2022-06-30 | N10: 2022-09-30 | O10: 2022-12-31 | P10: 2023-03-31 | Q10: 2023-06-30 | R10: 2023-09-30 | S10: 2023-12-31 | T10: 2024-03-31 | U10: 2024-06-30 | V10: 2024-09-30 | W10: 2024-12-31 | X10: 2025-03-31 | Y10: 2025-06-30 | Z10: 2025-09-30 | AA10: 2025-12-31 | AB10: 2026-03-31 | AC10: 2026-06-30 | AD10: 2026-09-30 | AE10: 2026-12-31 | AF10: 2027-03-31 | AG10: 2027-06-30
A12: 30 June year-end for ID (Vector, GasNet)
G13: Standard base year | K13: Gap year | O13: 1st BBAR year | S13: 2nd BBAR year | W13: 3rd BBAR year | AA13: 4th BBAR year | AE13: 5th BBAR year
B14: Disclosure years | F14: =TEXT(F$4,"dd.mm.yy") & " to " & TEXT(I$5,"dd.mm.yy") -> 01.07.20 to 30.06.21 | N14: =TEXT(N$4,"dd.mm.yy") & " to " & TEXT(Q$5,"dd.mm.yy") -> 01.07.22 to 30.06.23 | R14: =TEXT(R$4,"dd.mm.yy") & " to " & TEXT(U$5,"dd.mm.yy") -> 01.07.23 to 30.06.24 | V14: =TEXT(V$4,"dd.mm.yy") & " to " & TEXT(Y$5,"dd.mm.yy") -> 01.07.24 to 30.06.25 | Z14: =TEXT(Z$4,"dd.mm.yy") & " to " & TEXT(AC$5,"dd.mm.yy") -> 01.07.25 to 30.06.26 | AD14: =TEXT(AD$4,"dd.mm.yy") & " to " & TEXT(AG$5,"dd.mm.yy") -> 01.07.26 to 30.06.27
B16: Pricing years | O16: =TEXT(O$4,"dd.mm.yy") & " to " & TEXT(R$5,"dd.mm.yy") -> 01.10.22 to 30.09.23 | S16: =TEXT(S$4,"dd.mm.yy") & " to " & TEXT(V$5,"dd.mm.yy") -> 01.10.23 to 30.09.24 | W16: =TEXT(W$4,"dd.mm.yy") & " to " & TEXT(Z$5,"dd.mm.yy") -> 01.10.24 to 30.09.25 | AA16: =TEXT(AA$4,"dd.mm.yy") & " to " & TEXT(AD$5,"dd.mm.yy") -> 01.10.25 to 30.09.26 | AE16: =TEXT(AE$4,"dd.mm.yy") & " to " & TEXT(AH$5,"dd.mm.yy") -> 01.10.26 to 30.09.27
B18: Regulatory period | O18: =TEXT(O$4,"dd.mm.yy") & " to " & TEXT(AH$5,"dd.mm.yy") -> 01.10.22 to 30.09.27
A19: 30 September year-end for ID (Powerco, First Gas Distribution, First Gas Transmission)
H20: Standard base year | L20: Gap year | P20: 1st BBAR year | T20: 2nd BBAR year | X20: 3rd BBAR year | AB20: 4th BBAR year
B21: Disclosure years | C21: =TEXT(C$4,"dd.mm.yy") & " to " & TEXT(F$5,"dd.mm.yy") -> 01.10.19 to 30.09.20 | G21: =TEXT(G$4,"dd.mm.yy") & " to " & TEXT(J$5,"dd.mm.yy") -> 01.10.20 to 30.09.21 | O21: =TEXT(O$4,"dd.mm.yy") & " to " & TEXT(R$5,"dd.mm.yy") -> 01.10.22 to 30.09.23 | S21: =TEXT(S$4,"dd.mm.yy") & " to " & TEXT(V$5,"dd.mm.yy") -> 01.10.23 to 30.09.24 | W21: =TEXT(W$4,"dd.mm.yy") & " to " & TEXT(Z$5,"dd.mm.yy") -> 01.10.24 to 30.09.25 | AA21: =TEXT(AA$4,"dd.mm.yy") & " to " & TEXT(AD$5,"dd.mm.yy") -> 01.10.25 to 30.09.26
B23: Pricing years | O23: =TEXT(O$4,"dd.mm.yy") & " to " & TEXT(R$5,"dd.mm.yy") -> 01.10.22 to 30.09.23 | S23: =TEXT(S$4,"dd.mm.yy") & " to " & TEXT(V$5,"dd.mm.yy") -> 01.10.23 to 30.09.24 | W23: =TEXT(W$4,"dd.mm.yy") & " to " & TEXT(Z$5,"dd.mm.yy") -> 01.10.24 to 30.09.25 | AA23: =TEXT(AA$4,"dd.mm.yy") & " to " & TEXT(AD$5,"dd.mm.yy") -> 01.10.25 to 30.09.26
B25: Regulatory period | O25: =TEXT(O$4,"dd.mm.yy") & " to " & TEXT(AH$5,"dd.mm.yy") -> 01.10.22 to 30.09.27
P26: 1st MAR year | T26: 2nd MAR year | X26: 3rd MAR year | AB26: 4th MAR year
A27: Columns in the MAR sheet: | E27: C | G27: D | K27: E | O27: F | S27: G | W27: H | AA27: I
J33: =B4 -> first day in quarter | L33: =L4 -> 2022-01-01 | M33: =M4 -> 2022-04-01 | N33: 2022-07-01 | O33: 2022-10-01 | P33: 2023-01-01 | Q33: 2023-04-01 | R33: 2023-07-01 | S33: 2023-10-01 | T33: 2024-01-01 | U33: 2024-04-01 | V33: 2024-07-01 | W33: 2024-10-01 | X33: 2025-01-01 | Y33: 2025-04-01 | Z33: 2025-07-01 | AA33: 2025-10-01 | AB33: 2026-01-01 | AC33: 2026-04-01 | AD33: 2026-07-01 | AE33: 2026-10-01 | AF33: 2027-01-01 | AG33: 2027-04-01 | AH33: 2027-07-01 | AI33: 2027-10-01 | AJ33: 2028-01-01 | AK33: 2028-04-01
J34: =B5 -> last day in quarter | L34: =L5 -> 2022-03-31 | M34: 2022-06-30 | N34: 2022-09-30 | O34: 2022-12-31 | P34: 2023-03-31 | Q34: 2023-06-30 | R34: 2023-09-30 | S34: 2023-12-31 | T34: 2024-03-31 | U34: 2024-06-30 | V34: 2024-09-30 | W34: 2024-12-31 | X34: 2025-03-31 | Y34: 2025-06-30 | Z34: 2025-09-30 | AA34: 2025-12-31 | AB34: 2026-03-31 | AC34: 2026-06-30 | AD34: 2026-09-30 | AE34: 2026-12-31 | AF34: 2027-03-31 | AG34: 2027-06-30 | AH34: 2027-09-30 | AI34: 2027-12-31 | AJ34: 2028-03-31 | AK34: 2028-06-30

Sheet RAB
A1: Regulatory asset base | B1: Values, not time series | C1: Early base year | D1: Standard base year | E1: Gap year | F1: 1st BBAR year | G1: 2nd BBAR year | H1: 3rd BBAR year | I1: 4th BBAR year | J1: 5th BBAR year | L1: Spec ref | M1: GTB IM reference | N1: GDB IM reference
A2: Calculations relating to RAB values for full years
A3: Inputs | J3: =GPB_name -> First Gas transmission
A4: BBAR year ending in calendar year: | C4: ='GPB data'!C18 -> 2020 | D4: ='GPB data'!D18 -> 2021 | E4: ='GPB data'!E18 -> 2022 | F4: ='GPB data'!F18 -> 2023 | G4: ='GPB data'!G18 -> 2024 | H4: ='GPB data'!H18 -> 2025 | I4: ='GPB data'!I18 -> 2026 | J4: ='GPB data'!J18 -> 2027
A5: Opening RAB | C5: ='GPB data'!C34 -> ~ | D5: ='GPB data'!D34 -> 849688.0929
A6: Total depreciation | C6: ='GPB data'!C35 -> ~ | D6: ='GPB data'!D35 -> 34267.21374
A7: Closing RAB | C7: ='GPB data'!C36 -> ~ | D7: ='GPB data'!D36 -> 874464.5955
A8: Value of disposed assets | D8: ='GPB data'!D87 -> 1634.348379 | E8: ='GPB data'!E87 -> 466.0617575 | F8: ='GPB data'!F87 -> 477.7133014 | G8: ='GPB data'!G87 -> 488.2229941 | H8: ='GPB data'!H87 -> 497.987454 | I8: ='GPB data'!I87 -> 507.947203 | J8: ='GPB data'!J87 -> 518.1061471
A9: Value of commissioned assets | D9: ='GPB data'!D76 -> 18812.79207 | E9: ='GPB data'!E76 -> 37106.20045 | F9: ='GPB data'!F76 -> 40302.49786 | G9: ='GPB data'!G76 -> 47383.78588 | H9: ='GPB data'!H76 -> 40281.49669 | I9: ='GPB data'!I76 -> 42695.22192 | J9: ='GPB data'!J76 -> 45010.91881
A10: Remaining life for additional assets before adjustment factor | B10: ='GPB data'!B10 -> 45
A11: Forecast changes in CPI used for revaluations | D11: ='GPB data'!D26 -> 0.04933586338 | E11: ='GPB data'!E26 -> 0.05 | F11: ='GPB data'!F26 -> 0.025 | G11: ='GPB data'!G26 -> 0.022 | H11: ='GPB data'!H26 -> 0.02 | I11: ='GPB data'!I26 -> 0.02 | J11: ='GPB data'!J26 -> 0.02
A12: Adjustment factor (for accelerated depreciation) existing | B12: ='GPB data'!B31 -> 1
A13: Adjustment factor (for accelerated depreciation) additional | B13: ='GPB data'!B32 -> 1
A14: Remaining life for additional assets after adjustment | B14: =B10*B13 -> 45
A15: Calculations
A16: Roll forward of existing assets | C16: Early base year | D16: Base year | E16: Gap year | F16: First year of reg period
A17: BBAR year ending in calendar year: | C17: =C$4 -> 2020 | D17: =D$4 -> 2021 | E17: 2022 | F17: 2023 | G17: 2024 | H17: =H$4 -> 2025 | I17: 2026 | J17: 2027
A18: Remaining asset life for existing assets | C18: =IF(EarlyBaseYear,100%*C5/C6,"~") -> ~ | D18: =IF(EarlyBaseYear,C18-1,100%*D5/D6) -> 24.79594925 | E18: =D18-1 -> 23.79594925 | F18: =IF(EarlyBaseYear,B12*C5/C6-3,B12*D5/D6-2) -> 22.79594925 | G18: =F18-1 -> 21.79594925 | H18: =G18-1 -> 20.79594925 | I18: 19.79594925 | J18: 18.79594925 | M18: 4.2.2(3)(a) | N18: 4.2.2(3)(a)
A19: Opening RAB value for existing assets | C19: =IF(EarlyBaseYear,C5,"~") -> ~ | D19: =IF(EarlyBaseYear,C23,D5) -> 849688.0929 | E19: =D23 -> 874464.5955 | F19: =E23 -> 880906.2727 | G19: 863774.1452 | H19: =G23 -> 842629.1784 | I19: 818438.0531 | J19: 792928.6258 | M19: 4.2.1(2)(b) | N19: 4.2.1(2)(b)
A20: Value of disposed assets | D20: =D8 -> 1634.348379 | E20: 466.0617575 | F20: 477.7133014 | G20: 488.2229941 | H20: 497.987454 | I20: 507.947203 | J20: 518.1061471 | L20: simple ref
A21: Revaluation for existing assets | D21: =(D19*0.999-D20)*D11 -> 41797.54358 | E21: 43656.20346 | F21: 21988.69133 | G21: 18973.28726 | H21: 16825.77124 | I21: 16342.23336 | J21: 15832.35182 | M21: 4.2.3(2)(a) | N21: 4.2.3(2)(a)
A22: Depreciation for existing assets | D22: =D19/D18 -> 34267.21374 | E22: 36748.46446 | F22: 38643.10553 | G22: 39630.03103 | H22: =H19/H18 -> 40518.90915 | I22: 41343.71343 | J22: 42186.14421 | M22: 4.2.2(2)(a)(ii) | N22: 4.2.2(2)(a)(ii)
A23: Closing RAB value for existing assets | C23: =IF(EarlyBaseYear,C7,"~") -> ~ | D23: =IF(EarlyBaseYear,D19-D20+D21-D22,D7) -> 874464.5955 | E23: =E19-E20+E21-E22 -> 880906.2727 | F23: 863774.1452 | G23: 842629.1784 | H23: =H19-H20+H21-H22 -> 818438.0531 | I23: 792928.6258 | J23: 766056.7273 | M23: 4.2.1(3)(b) | N23: 4.2.1(3)(b)
A24: Individual roll forward of additional assets
A25: BBAR year ending in calendar year: | D25: =D$4 -> 2021 | E25: 2022 | F25: 2023 | G25: 2024 | H25: =H$4 -> 2025 | I25: 2026 | J25: 2027
A26: Value of commissioned assets | D26: =D$9 -> 18812.79207 | E26: 37106.20045 | F26: 40302.49786 | G26: 47383.78588 | H26: =H$9 -> 40281.49669 | I26: 42695.22192 | J26: 45010.91881 | L26: simple ref
A27: =" Assets commissioned in yr ending " & C28 -> Assets commissioned in yr ending 2021
A28: Year asset is added during modelling period | C28: =D25 -> 2021
A29: Opening RAB | D29: 0 | E29: =D34 -> 0 | F29: 0 | G29: 0 | H29: =G34 -> 0 | I29: 0 | J29: 0 | M29: 4.2.1(4) | N29: 4.2.1(4)
A30: Years of remaining life | D30: =B10 -> 45 | E30: =D30-1 -> 44 | F30: =(E30-1)*B13 -> 43 | G30: =F30-1 -> 42 | H30: =G30-1 -> 41 | I30: 40 | J30: 39 | M30: 4.2.2(3)(b) | N30: 4.2.2(3)(b)
A31: Revaluation of assets | D31: =D29*D$11 -> 0 | E31: =E29*E$11 -> 0 | F31: 0 | G31: 0 | H31: 0 | I31: 0 | J31: 0 | M31: 4.2.3(2) | N31: 4.2.3(2)
A32: Depreciation of assets | D32: =D29/D30 -> 0 | E32: 0 | F32: 0 | G32: 0 | H32: =H29/H30 -> 0 | I32: 0 | J32: 0 | M32: 4.2.2(2)(b) | N32: 4.2.2(2)(b)
A33: ="RAB of asset commissioned in year ending " & C28 -> RAB of asset commissioned in year ending 2021 | D33: =IF(EarlyBaseYear,D$26,0) -> 0 | E33: =IF($C28=E$25,E$26,0) -> 0 | F33: 0 | G33: 0 | H33: 0 | I33: 0 | J33: 0
A34: Closing RAB | D34: =D29+D31-D32+D33 -> 0 | E34: =E29+E31-E32+E33 -> 0 | F34: =F29+F31-F32+F33 -> 0 | G34: 0 | H34: =H29+H31-H32+H33 -> 0 | I34: 0 | J34: 0 | M34: 4.2.1(5)(b) | N34: 4.2.1(5)(b)
A35: =" Assets commissioned in yr ending " & C36 -> Assets commissioned in yr ending 2022
A36: Year asset is added during modelling period | C36: =E25 -> 2022
A37: Opening RAB | D37: 0 | E37: =D42 -> 0 | F37: 37106.20045 | G37: 37190.53272 | H37: =G42 -> 37143.82833 | I37: 37002.32803 | J37: 36839.87879 | M37: =M29 -> 4.2.1(4) | N37: 4.2.1(4)
A38: Years of remaining life | D38: =$B$10+$C36-D$25 -> 46 | E38: =D38-1 -> 45 | F38: =(E38-1)*B13 -> 44 | G38: =F38-1 -> 43 | H38: =G38-1 -> 42 | I38: 41 | J38: 40 | M38: 4.2.2(3)(b) | N38: 4.2.2(3)(b)
A39: Revaluation of assets | D39: =D37*D$11 -> 0 | E39: =E37*E$11 -> 0 | F39: 927.6550112 | G39: 818.1917199 | H39: 742.8765666 | I39: 740.0465607 | J39: 736.7975758 | M39: 4.2.3(2) | N39: 4.2.3(2)
A40: Depreciation of assets | D40: =D37/D38 -> 0 | E40: 0 | F40: 843.3227374 | G40: 864.8961098 | H40: =H37/H38 -> 884.376865 | I40: 902.4958057 | J40: 920.9969697 | M40: 4.2.2(2)(b) | N40: 4.2.2(2)(b)
A41: ="RAB of asset commissioned in year ending " & C36 -> RAB of asset commissioned in year ending 2022 | D41: =IF($C36=D$25,D$26,0) -> 0 | E41: 37106.20045 | F41: 0 | G41: 0 | H41: 0 | I41: 0 | J41: 0
A42: Closing RAB | D42: =D37+D39-D40+D41 -> 0 | E42: =E37+E39-E40+E41 -> 37106.20045 | F42: =F37+F39-F40+F41 -> 37190.53272 | G42: 37143.82833 | H42: =H37+H39-H40+H41 -> 37002.32803 | I42: 36839.87879 | J42: 36655.67939 | M42: 4.2.1(5)(b) | N42: 4.2.1(5)(b)
A43: =" Assets commissioned in yr ending " & C44 -> Assets commissioned in yr ending 2023
A44: Year asset is added during modelling period | C44: =F25 -> 2023
A45: Opening RAB | D45: 0 | E45: =D50 -> 0 | F45: 0 | G45: 40302.49786 | H45: =G50 -> 40273.18695 | I45: 40142.06494 | J45: 39989.14279 | M45: =M37 -> 4.2.1(4) | N45: 4.2.1(4)
A46: Years of remaining life | D46: =$B$10+$C44-D$25 -> 47 | E46: =D46-1 -> 46 | F46: =(E46-1)*B13 -> 45 | G46: =F46-1 -> 44 | H46: =G46-1 -> 43 | I46: 42 | J46: 41 | M46: 4.2.2(3)(b) | N46: 4.2.2(3)(b)
A47: Revaluation of assets | D47: =D45*D$11 -> 0 | E47: =E45*E$11 -> 0 | F47: 0 | G47: 886.6549528 | H47: 805.463739 | I47: 802.8412989 | J47: 799.7828558 | M47: 4.2.3(2) | N47: 4.2.3(2)
A48: Depreciation of assets | D48: =D45/D46 -> 0 | E48: 0 | F48: 0 | G48: 915.9658603 | H48: =H45/H46 -> 936.585743 | I48: 955.763451 | J48: 975.3449461 | M48: 4.2.2(2)(b) | N48: 4.2.2(2)(b)
A49: ="RAB of asset commissioned in year ending " & C44 -> RAB of asset commissioned in year ending 2023 | D49: =IF($C44=D$25,D$26,0) -> 0 | E49: 0 | F49: 40302.49786 | G49: 0 | H49: 0 | I49: 0 | J49: 0
A50: Closing RAB | D50: =D45+D47-D48+D49 -> 0 | E50: =E45+E47-E48+E49 -> 0 | F50: 40302.49786 | G50: 40273.18695 | H50: =H45+H47-H48+H49 -> 40142.06494 | I50: 39989.14279 | J50: 39813.5807 | M50: 4.2.1(5)(b) | N50: 4.2.1(5)(b)
A51: =" Assets commissioned in yr ending " & C52 -> Assets commissioned in yr ending 2024
A52: Year asset is added during modelling period | C52: =G25 -> 2024
A53: Opening RAB | D53: 0 | E53: =D58 -> 0 | F53: 0 | G53: 0 | H53: =G58 -> 47383.78588 | I53: 47254.55738 | J53: 47100.70533 | M53: =M45 -> 4.2.1(4) | N53: 4.2.1(4)
A54: Years of remaining life | D54: =$B$10+$C52-D$25 -> 48 | E54: =D54-1 -> 47 | F54: =(E54-1)*B13 -> 46 | G54: =F54-1 -> 45 | H54: =G54-1 -> 44 | I54: 43 | J54: 42 | M54: 4.2.2(3)(b) | N54: 4.2.2(3)(b)
A55: Revaluation of assets | D55: =D53*D$11 -> 0 | E55: =E53*E$11 -> 0 | F55: 0 | G55: 0 | H55: 947.6757177 | I55: 945.0911476 | J55: 942.0141066 | M55: 4.2.3(2) | N55: 4.2.3(2)
A56: Depreciation of assets | D56: =D53/D54 -> 0 | E56: 0 | F56: 0 | G56: 0 | H56: =H53/H54 -> 1076.904225 | I56: 1098.943195 | J56: 1121.445365 | M56: 4.2.2(2)(b) | N56: 4.2.2(2)(b)
A57: ="RAB of asset commissioned in year ending " & C52 -> RAB of asset commissioned in year ending 2024 | D57: =IF($C52=D$25,D$26,0) -> 0 | E57: 0 | F57: 0 | G57: 47383.78588 | H57: 0 | I57: 0 | J57: 0
A58: Closing RAB | D58: =D53+D55-D56+D57 -> 0 | E58: =E53+E55-E56+E57 -> 0 | F58: 0 | G58: 47383.78588 | H58: =H53+H55-H56+H57 -> 47254.55738 | I58: 47100.70533 | J58: 46921.27407 | M58: 4.2.1(5)(b) | N58: 4.2.1(5)(b)
A59: =" Assets commissioned in yr ending " & C60 -> Assets commissioned in yr ending 2025
A60: Year asset is added during modelling period | C60: =H25 -> 2025
A61: Opening RAB | D61: 0 | E61: =D66 -> 0 | F61: 0 | G61: 0 | H61: =G66 -> 0 | I61: 40281.49669 | J61: 40171.63806 | M61: =M53 -> 4.2.1(4) | N61: 4.2.1(4)
A62: Years of remaining life | D62: =$B$10+$C60-D$25 -> 49 | E62: =D62-1 -> 48 | F62: =(E62-1)*B13 -> 47 | G62: =F62-1 -> 46 | H62: =G62-1 -> 45 | I62: 44 | J62: 43 | M62: 4.2.2(3)(b) | N62: 4.2.2(3)(b)
A63: Revaluation of assets | D63: =D61*D$11 -> 0 | E63: =E61*E$11 -> 0 | F63: 0 | G63: 0 | H63: 0 | I63: 805.6299338 | J63: 803.4327612 | M63: 4.2.3(2) | N63: 4.2.3(2)
A64: Depreciation of assets | D64: =D61/D62 -> 0 | E64: 0 | F64: 0 | G64: 0 | H64: =H61/H62 -> 0 | I64: 915.4885611 | J64: 934.224141 | M64: 4.2.2(2)(b) | N64: 4.2.2(2)(b)
A65: ="RAB of asset commissioned in year ending " & C60 -> RAB of asset commissioned in year ending 2025 | D65: =IF($C60=D$25,D$26,0) -> 0 | E65: 0 | F65: 0 | G65: 0 | H65: 40281.49669 | I65: 0 | J65: 0
A66: Closing RAB | D66: =D61+D63-D64+D65 -> 0 | E66: =E61+E63-E64+E65 -> 0 | F66: 0 | G66: 0 | H66: =H61+H63-H64+H65 -> 40281.49669 | I66: 40171.63806 | J66: 40040.84668 | M66: 4.2.1(5)(b) | N66: 4.2.1(5)(b)
A67: =" Assets commissioned in yr ending " & C68 -> Assets commissioned in yr ending 2026
A68: Year asset is added during modelling period | C68: =I25 -> 2026
A69: Opening RAB | D69: 0 | E69: =D74 -> 0 | F69: 0 | G69: 0 | H69: =G74 -> 0 | I69: 0 | J69: 42695.22192 | M69: =M61 -> 4.2.1(4) | N69: 4.2.1(4)
A70: Years of remaining life | D70: =$B$10+$C68-D$25 -> 50 | E70: =D70-1 -> 49 | F70: =(E70-1)*B13 -> 48 | G70: =F70-1 -> 47 | H70: =G70-1 -> 46 | I70: 45 | J70: 44 | M70: 4.2.2(3)(b) | N70: 4.2.2(3)(b)
A71: Revaluation of assets | D71: =D69*D$11 -> 0 | E71: =E69*E$11 -> 0 | F71: 0 | G71: 0 | H71: 0 | I71: 0 | J71: 853.9044383 | M71: 4.2.3(2) | N71: 4.2.3(2)
A72: Depreciation of assets | D72: =D69/D70 -> 0 | E72: 0 | F72: 0 | G72: 0 | H72: =H69/H70 -> 0 | I72: 0 | J72: 970.3459527 | M72: 4.2.2(2)(b) | N72: 4.2.2(2)(b)
A73: ="RAB of asset commissioned in year ending " & C68 -> RAB of asset commissioned in year ending 2026 | D73: =IF($C68=D$25,D$26,0) -> 0 | E73: 0 | F73: 0 | G73: 0 | H73: 0 | I73: 42695.22192 | J73: 0
A74: Closing RAB | D74: =D69+D71-D72+D73 -> 0 | E74: =E69+E71-E72+E73 -> 0 | F74: 0 | G74: 0 | H74: =H69+H71-H72+H73 -> 0 | I74: 42695.22192 | J74: 42578.7804 | M74: 4.2.1(5)(b) | N74: 4.2.1(5)(b)
A75: =" Assets commissioned in yr ending " & C76 -> Assets commissioned in yr ending 2027
A76: Year asset is added during modelling period | C76: =J25 -> 2027
A77: Opening RAB | D77: 0 | E77: =D82 -> 0 | F77: 0 | G77: 0 | H77: =G82 -> 0 | I77: 0 | J77: 0 | M77: =M69 -> 4.2.1(4) | N77: 4.2.1(4)
A78: Years of remaining life | D78: =$B$10+$C76-D$25 -> 51 | E78: =D78-1 -> 50 | F78: =(E78-1)*B13 -> 49 | G78: =F78-1 -> 48 | H78: =G78-1 -> 47 | I78: 46 | J78: 45 | M78: 4.2.2(3)(b) | N78: 4.2.2(3)(b)
A79: Revaluation of assets | D79: =D77*D$11 -> 0 | E79: =E77*E$11 -> 0 | F79: 0 | G79: 0 | H79: 0 | I79: 0 | J79: 0 | M79: 4.2.3(2) | N79: 4.2.3(2)
A80: Depreciation of assets | D80: =D77/D78 -> 0 | E80: 0 | F80: 0 | G80: 0 | H80: =H77/H78 -> 0 | I80: 0 | J80: 0 | M80: 4.2.2(2)(b) | N80: 4.2.2(2)(b)
A81: ="RAB of asset commissioned in year ending " & C76 -> RAB of asset commissioned in year ending 2027 | D81: =IF($C76=D$25,D$26,0) -> 0 | E81: 0 | F81: 0 | G81: 0 | H81: 0 | I81: 0 | J81: 45010.91881
A82: Closing RAB | D82: =D77+D79-D80+D81 -> 0 | E82: =E77+E79-E80+E81 -> 0 | F82: 0 | G82: 0 | H82: =H77+H79-H80+H81 -> 0 | I82: 0 | J82: 45010.91881 | M82: 4.2.1(5)(b) | N82: 4.2.1(5)(b)
A83: Aggregate roll forward of additional assets
A84: Opening RAB of commissioned additional assets | D84: =D29+D37+D45+D53+D61+D69+D77 -> 0 | E84: =D87 -> 0 | F84: =E87 -> 37106.20045 | G84: 77493.03058 | H84: =G87 -> 124800.8012 | I84: 164680.447 | J84: 206796.5869 | M84: 4.2.1(4) | N84: 4.2.1(4)
A85: Revaluation of commissioned additional assets | D85: =D31+D39+D47+D55+D63+D71+D79 -> 0 | E85: 0 | F85: 927.6550112 | G85: 1704.846673 | H85: 2496.016023 | I85: 3293.608941 | J85: 4135.931738
A86: Depreciation of commissioned additional assets | D86: 0 | E86: 0 | F86: 843.3227374 | G86: 1780.86197 | H86: 2897.866833 | I86: 3872.691013 | J86: 4922.357374
A87: Closing RAB of commissioned additional assets | D87: =D34+D42+D50+D58+D66+D74+D82 -> 0 | E87: 37106.20045 | F87: 77493.03058 | G87: 124800.8012 | H87: 164680.447 | I87: 206796.5869 | J87: 251021.0801
A88: Combined roll forward of existing and additional assets
A89: BBAR year ending in calendar year: | D89: =D$4 -> 2021 | E89: 2022 | F89: 2023 | G89: 2024 | H89: =H$4 -> 2025 | I89: 2026 | J89: 2027
A90: Aggregate opening RAB value | D90: =D19+D84 -> 849688.0929 | E90: 874464.5955 | F90: 918012.4732 | G90: 941267.1758 | H90: 967429.9796 | I90: 983118.5001 | J90: 999725.2127 | M90: 4.2.1(1) | N90: 4.2.1(1)
A91: Total revaluation | D91: =D21+D85 -> 41797.54358 | E91: 43656.20346 | F91: 22916.34634 | G91: 20678.13393 | H91: 19321.78726 | I91: 19635.8423 | J91: 19968.28356 | M91: 4.2.3(1) | N91: 4.2.3(1)
A92: Total depreciation | D92: 34267.21374 | E92: 36748.46446 | F92: 39486.42827 | G92: 41410.893 | H92: 43416.77598 | I92: 45216.40444 | J92: 47108.50158 | M92: 4.2.2(1) | N92: 4.2.2(1)
A93: Aggregate closing RAB value | E93: =E23+E87 -> 918012.4732 | F93: 941267.1758 | G93: 967429.9796 | H93: 983118.5001 | I93: 999725.2127 | J93: 1017077.807
A94: Check that closing value is as expected. Should = 0 | E94: =E90+E26+E91-E92-E20-E93 -> 0 | F94: 0 | G94: 0 | H94: 0 | I94: 0 | J94: 0
A95: Outputs
A96: BBAR year ending in calendar year: | C96: =C$4 -> 2020 | D96: 2021 | E96: 2022 | F96: 2023 | G96: 2024 | H96: =H$4 -> 2025 | I96: 2026 | J96: 2027
A97: Value of commissioned assets
A98: Remaining asset life for existing assets | D98: =D18 -> 24.79594925 | E98: 23.79594925 | F98: 22.79594925 | G98: 21.79594925 | H98: 20.79594925 | I98: 19.79594925 | J98: 18.79594925 | L98: simple ref
A99: Total depreciation | D99: =D92 -> 34267.21374 | E99: 36748.46446 | F99: 39486.42827 | G99: 41410.893 | H99: =H92 -> 43416.77598 | I99: 45216.40444 | J99: 47108.50158 | L99: simple ref
A100: Aggregate opening RAB value | C100: =C19 -> ~ | D100: =D90 -> 849688.0929 | E100: =E90 -> 874464.5955 | F100: 918012.4732 | G100: 941267.1758 | H100: =H90 -> 967429.9796 | I100: 983118.5001 | J100: 999725.2127 | L100: simple ref
A101: Total revaluation | F101: =F91 -> 22916.34634 | G101: 20678.13393 | H101: =H91 -> 19321.78726 | I101: 19635.8423 | J101: 19968.28356 | L101: simple ref
A102: Closing RAB value, 4th BBAR year | B102: =J93 -> 1017077.807

Sheet Tax
A1: Tax calculations | B1: Values, not time series | C1: Early base year | D1: Standard base year | E1: Gap year | F1: 1st BBAR year | G1: 2nd BBAR year | H1: 3rd BBAR year | I1: 4th BBAR year | J1: 5th BBAR year | K1: Spec ref | L1: GTB IM reference | M1: GDB IM reference
A2: Calculation of adjusted depreciation, tax depreciation, deferred tax, notional deductible interest and regulatory tax adjustments.
A3: Inputs | J3: =GPB_name -> First Gas transmission
A4: BBAR year ending in calendar year: | C4: ='GPB data'!C18 -> 2020 | D4: ='GPB data'!D18 -> 2021 | E4: ='GPB data'!E18 -> 2022 | F4: ='GPB data'!F18 -> 2023 | G4: ='GPB data'!G18 -> 2024 | H4: ='GPB data'!H18 -> 2025 | I4: ='GPB data'!I18 -> 2026 | J4: ='GPB data'!J18 -> 2027 | K4: GPB data
A5: Corporate tax rate | C5: ='GPB data'!C23 -> 0.28 | D5: ='GPB data'!D23 -> 0.28 | E5: ='GPB data'!E23 -> 0.28 | F5: ='GPB data'!F23 -> 0.28 | G5: ='GPB data'!G23 -> 0.28 | H5: ='GPB data'!H23 -> 0.28 | I5: ='GPB data'!I23 -> 0.28 | J5: ='GPB data'!J23 -> 0.28 | K5: GPB data
A6: Value of commissioned assets | C6: ='GPB data'!C76 -> 0 | D6: ='GPB data'!D76 -> 18812.79207 | E6: ='GPB data'!E76 -> 37106.20045 | F6: ='GPB data'!F76 -> 40302.49786 | G6: ='GPB data'!G76 -> 47383.78588 | H6: ='GPB data'!H76 -> 40281.49669 | I6: ='GPB data'!I76 -> 42695.22192 | J6: ='GPB data'!J76 -> 45010.91881 | K6: RAB
A7: Remaining life for additional assets | D7: ='GPB data'!B10 -> 45 | K7: GPB data
A8: Amortisation of initial differences in asset values | B8: ='GPB data'!B43 -> 0 | K8: GPB data
A9: Value of disposed assets | D9: ='GPB data'!D87 -> 1634.348379 | E9: ='GPB data'!E87 -> 466.0617575 | F9: ='GPB data'!F87 -> 477.7133014 | G9: ='GPB data'!G87 -> 488.2229941 | H9: ='GPB data'!H87 -> 497.987454 | I9: ='GPB data'!I87 -> 507.947203 | J9: ='GPB data'!J87 -> 518.1061471 | K9: RAB
A10: Opening RAB excluding revaluations | C10: ='GPB data'!C37 -> ~ | D10: ='GPB data'!D37 -> 0 | K10: GPB data
A11: Adjusted depreciation | C11: ='GPB data'!C38 -> ~ | D11: ='GPB data'!D38 -> 0 | K11: GPB data
A12: Tax depreciation | C12: ='GPB data'!C39 -> ~ | D12: ='GPB data'!D39 -> 22468.73376 | K12: GPB data
A13: Opening regulatory tax asset value | C13: ='GPB data'!C40 -> ~ | D13: ='GPB data'!D40 -> 205340.1339 | K13: GPB data
A14: Opening deferred tax balance | C14: ='GPB data'!C42 -> ~ | D14: ='GPB data'!D42 -> 0 | K14: GPB data
A15: Cost of debt | D15: ='GPB data'!B8 -> 0.0404 | K15: GPB data
A16: Leverage | D16: ='GPB data'!B9 -> 0.42 | K16: GPB data
A17: Remaining asset life for existing assets | D17: =RAB!D98 -> 24.79594925 | E17: =RAB!E98 -> 23.79594925 | F17: =RAB!F98 -> 22.79594925 | G17: =RAB!G98 -> 21.79594925 | H17: =RAB!H98 -> 20.79594925 | I17: =RAB!I98 -> 19.79594925 | J17: =RAB!J98 -> 18.79594925 | K17: RAB
A18: Total depreciation | F18: =RAB!F99 -> 39486.42827 | G18: =RAB!G99 -> 41410.893 | H18: =RAB!H99 -> 43416.77598 | I18: =RAB!I99 -> 45216.40444 | J18: =RAB!J99 -> 47108.50158 | K18: RAB
A19: Term credit spread differential allowance, full BBAR years | F19: =BBAR!F92 -> 1373.436497 | G19: =BBAR!G92 -> 1408.227807 | H19: =BBAR!H92 -> 1447.369922 | I19: =BBAR!I92 -> 1470.841484 | J19: =BBAR!J92 -> 1495.686751 | K19: BBAR
A20: Opening investment value | F20: =BBAR!F94 -> 918012.4732 | G20: =BBAR!G94 -> 941267.1758 | H20: =BBAR!H94 -> 967429.9796 | I20: =BBAR!I94 -> 983118.5001 | J20: =BBAR!J94 -> 999725.2127 | K20: BBAR
A21: Calculations
A22: Adjusted RAB & depreciation of assets commissioned
A23: BBAR year ending in calendar year: | D23: =D$4 -> 2021 | E23: =E$4 -> 2022 | F23: 2023 | G23: 2024 | H23: =H$4 -> 2025 | I23: 2026 | J23: 2027
A24: Value of commissioned assets | D24: =D6 -> 18812.79207 | E24: 37106.20045 | F24: 40302.49786 | G24: 47383.78588 | H24: 40281.49669 | I24: 42695.22192 | J24: 45010.91881 | K24: simple ref
A25: ="Assets commissioned in year ending " & C25 -> Assets commissioned in year ending 2021 | C25: =D23 -> 2021
A26: Opening RAB, adjusted depreciation | D26: 0 | E26: =D30 -> 0 | F26: 0 | G26: 0 | H26: =G30 -> 0 | I26: 0 | J26: 0 | L26: n/a | M26: 4.2.1(3)(b)adj
A27: Years of remaining life | D27: =RAB!D30 -> 45 | E27: =RAB!E30 -> 44 | F27: =RAB!F30 -> 43 | G27: =RAB!G30 -> 42 | H27: =RAB!H30 -> 41 | I27: =RAB!I30 -> 40 | J27: =RAB!J30 -> 39 | L27: n/a | M27: 4.2.2(3)(b)adj
A28: Adjusted depreciation | D28: =D26/D27 -> 0 | E28: 0 | F28: 0 | G28: 0 | H28: =H26/H27 -> 0 | I28: 0 | J28: 0 | L28: n/a | M28: 4.2.2(2)(b)adj
A29: ="RAB of asset commissioned in year ending " & C25 -> RAB of asset commissioned in year ending 2021 | D29: =IF(EarlyBaseYear,D$24,0) -> 0 | E29: =IF($C25=E$23,E$24,0) -> 0 | F29: =IF($C25=F$23,F$24,0) -> 0 | G29: 0 | H29: =IF($C25=H$23,H$24,0) -> 0 | I29: 0 | J29: 0
A30: Closing RAB, adjusted depreciation | D30: =D26-D28+D29 -> 0 | E30: =E26-E28+E29 -> 0 | F30: =F26-F28+F29 -> 0 | G30: 0 | H30: =H26-H28+H29 -> 0 | I30: 0 | J30: 0 | L30: n/a | M30: 4.2.1(5)(b)
A31: ="Assets commissioned in year ending " & C31 -> Assets commissioned in year ending 2022 | C31: =E23 -> 2022
A32: Opening RAB, adjusted depreciation | D32: 0 | E32: =D36 -> 0 | F32: =E36 -> 37106.20045 | G32: 36262.87771 | H32: =G36 -> 35419.55497 | I32: 34576.23224 | J32: 33732.9095 | L32: =L26 -> n/a | M32: 4.2.1(3)(b)adj
A33: Years of remaining life | D33: =RAB!D38 -> 46 | E33: =RAB!E38 -> 45 | F33: =RAB!F38 -> 44 | G33: =RAB!G38 -> 43 | H33: =RAB!H38 -> 42 | I33: =RAB!I38 -> 41 | J33: =RAB!J38 -> 40 | L33: n/a | M33: 4.2.2(3)(b)adj
A34: Adjusted depreciation | D34: =D32/D33 -> 0 | E34: 0 | F34: 843.3227374 | G34: 843.3227374 | H34: =H32/H33 -> 843.3227374 | I34: 843.3227374 | J34: 843.3227374 | L34: n/a | M34: 4.2.2(2)(b)adj
A35: ="RAB of asset commissioned in year ending " & C31 -> RAB of asset commissioned in year ending 2022 | D35: =IF($C31=D$23,D$24,0) -> 0 | E35: =IF($C31=E$23,E$24,0) -> 37106.20045 | F35: =IF($C31=F$23,F$24,0) -> 0 | G35: 0 | H35: =IF($C31=H$23,H$24,0) -> 0 | I35: 0 | J35: 0
A36: Closing RAB, adjusted depreciation | D36: =D32-D34+D35 -> 0 | E36: =E32-E34+E35 -> 37106.20045 | F36: 36262.87771 | G36: 35419.55497 | H36: =H32-H34+H35 -> 34576.23224 | I36: 33732.9095 | J36: 32889.58676 | L36: =L30 -> n/a | M36: =M30 -> 4.2.1(5)(b)
A37: ="Assets commissioned in year ending " & C37 -> Assets commissioned in year ending 2023 | C37: =F23 -> 2023
A38: Opening RAB, adjusted depreciation | D38: 0 | E38: =D42 -> 0 | F38: 0 | G38: 40302.49786 | H38: =G42 -> 39386.53199 | I38: 38470.56613 | J38: 37554.60027 | L38: =L32 -> n/a | M38: 4.2.1(3)(b)adj
A39: Years of remaining life | D39: =RAB!D46 -> 47 | E39: =RAB!E46 -> 46 | F39: =RAB!F46 -> 45 | G39: =RAB!G46 -> 44 | H39: =RAB!H46 -> 43 | I39: =RAB!I46 -> 42 | J39: =RAB!J46 -> 41 | L39: n/a | M39: 4.2.2(3)(b)adj
A40: Adjusted depreciation | D40: =D38/D39 -> 0 | E40: 0 | F40: 0 | G40: 915.9658603 | H40: =H38/H39 -> 915.9658603 | I40: 915.9658603 | J40: 915.9658603 | L40: n/a | M40: 4.2.2(2)(b)adj
A41: ="RAB of asset commissioned in year ending " & C37 -> RAB of asset commissioned in year ending 2023 | D41: =IF($C37=D$23,D$24,0) -> 0 | E41: =IF($C37=E$23,E$24,0) -> 0 | F41: =IF($C37=F$23,F$24,0) -> 40302.49786 | G41: 0 | H41: =IF($C37=H$23,H$24,0) -> 0 | I41: 0 | J41: 0
A42: Closing RAB, adjusted depreciation | D42: =D38-D40+D41 -> 0 | E42: 0 | F42: 40302.49786 | G42: 39386.53199 | H42: =H38-H40+H41 -> 38470.56613 | I42: 37554.60027 | J42: 36638.63441 | L42: =L36 -> n/a | M42: =M36 -> 4.2.1(5)(b)
A43: ="Assets commissioned in year ending " & C43 -> Assets commissioned in year ending 2024 | C43: =G23 -> 2024
A44: Opening RAB, adjusted depreciation | D44: 0 | E44: =D48 -> 0 | F44: 0 | G44: 0 | H44: =G48 -> 47383.78588 | I44: 46306.88166 | J44: 45229.97744 | L44: =L38 -> n/a | M44: 4.2.1(3)(b)adj
A45: Years of remaining life | D45: =RAB!D54 -> 48 | E45: =RAB!E54 -> 47 | F45: =RAB!F54 -> 46 | G45: =RAB!G54 -> 45 | H45: =RAB!H54 -> 44 | I45: =RAB!I54 -> 43 | J45: =RAB!J54 -> 42 | L45: n/a | M45: 4.2.2(3)(b)adj
A46: Adjusted depreciation | D46: =D44/D45 -> 0 | E46: 0 | F46: 0 | G46: 0 | H46: =H44/H45 -> 1076.904225 | I46: 1076.904225 | J46: 1076.904225 | L46: n/a | M46: 4.2.2(2)(b)adj
A47: ="RAB of asset commissioned in year ending " & C43 -> RAB of asset commissioned in year ending 2024 | D47: =IF($C43=D$23,D$24,0) -> 0 | E47: =IF($C43=E$23,E$24,0) -> 0 | F47: =IF($C43=F$23,F$24,0) -> 0 | G47: 47383.78588 | H47: =IF($C43=H$23,H$24,0) -> 0 | I47: 0 | J47: 0
A48: Closing RAB, adjusted depreciation | D48: =D44-D46+D47 -> 0 | E48: 0 | F48: 0 | G48: 47383.78588 | H48: =H44-H46+H47 -> 46306.88166 | I48: 45229.97744 | J48: 44153.07321 | L48: =L42 -> n/a | M48: =M42 -> 4.2.1(5)(b)
A49: ="Assets commissioned in year ending " & C49 -> Assets commissioned in year ending 2025 | C49: =H23 -> 2025
A50: Opening RAB, adjusted depreciation | D50: 0 | E50: =D54 -> 0 | F50: 0 | G50: 0 | H50: =G54 -> 0 | I50: 40281.49669 | J50: 39366.00813 | L50: =L44 -> n/a | M50: 4.2.1(3)(b)adj
A51: Years of remaining life | D51: =RAB!D62 -> 49 | E51: =RAB!E62 -> 48 | F51: =RAB!F62 -> 47 | G51: =RAB!G62 -> 46 | H51: =RAB!H62 -> 45 | I51: =RAB!I62 -> 44 | J51: =RAB!J62 -> 43 | L51: n/a | M51: 4.2.2(3)(b)adj
A52: Adjusted depreciation | D52: =D50/D51 -> 0 | E52: 0 | F52: 0 | G52: 0 | H52: =H50/H51 -> 0 | I52: 915.4885611 | J52: 915.4885611 | L52: n/a | M52: 4.2.2(2)(b)adj
A53: ="RAB of asset commissioned in year ending " & C49 -> RAB of asset commissioned in year ending 2025 | D53: =IF($C49=D$23,D$24,0) -> 0 | E53: =IF($C49=E$23,E$24,0) -> 0 | F53: =IF($C49=F$23,F$24,0) -> 0 | G53: 0 | H53: =IF($C49=H$23,H$24,0) -> 40281.49669 | I53: 0 | J53: 0
A54: Closing RAB, adjusted depreciation | D54: =D50-D52+D53 -> 0 | E54: 0 | F54: 0 | G54: 0 | H54: =H50-H52+H53 -> 40281.49669 | I54: 39366.00813 | J54: 38450.51957 | L54: =L48 -> n/a | M54: =M48 -> 4.2.1(5)(b)
A55: ="Assets commissioned in year ending " & C55 -> Assets commissioned in year ending 2026 | C55: =I23 -> 2026
A56: Opening RAB, adjusted depreciation | D56: 0 | E56: =D60 -> 0 | F56: 0 | G56: 0 | H56: =G60 -> 0 | I56: 0 | J56: 42695.22192 | L56: =L50 -> n/a | M56: 4.2.1(3)(b)adj
A57: Years of remaining life | D57: =RAB!D70 -> 50 | E57: =RAB!E70 -> 49 | F57: =RAB!F70 -> 48 | G57: =RAB!G70 -> 47 | H57: =RAB!H70 -> 46 | I57: =RAB!I70 -> 45 | J57: =RAB!J70 -> 44 | L57: n/a | M57: 4.2.2(3)(b)adj
A58: Adjusted depreciation | D58: =D56/D57 -> 0 | E58: 0 | F58: 0 | G58: 0 | H58: =H56/H57 -> 0 | I58: 0 | J58: 970.3459527 | L58: n/a | M58: 4.2.2(2)(b)adj
A59: ="RAB of asset commissioned in year ending " & C55 -> RAB of asset commissioned in year ending 2026 | D59: =IF($C55=D$23,D$24,0) -> 0 | E59: =IF($C55=E$23,E$24,0) -> 0 | F59: =IF($C55=F$23,F$24,0) -> 0 | G59: 0 | H59: =IF($C55=H$23,H$24,0) -> 0 | I59: 42695.22192 | J59: 0
A60: Closing RAB, adjusted depreciation | D60: =D56-D58+D59 -> 0 | E60: 0 | F60: 0 | G60: 0 | H60: =H56-H58+H59 -> 0 | I60: 42695.22192 | J60: 41724.87596 | L60: =L54 -> n/a | M60: =M54 -> 4.2.1(5)(b)
A61: ="Assets commissioned in year ending " & C61 -> Assets commissioned in year ending 2027 | C61: =J23 -> 2027
A62: Opening RAB, adjusted depreciation | D62: 0 | E62: =D66 -> 0 | F62: 0 | G62: 0 | H62: =G66 -> 0 | I62: 0 | J62: 0 | L62: =L56 -> n/a | M62: 4.2.1(3)(b)adj
A63: Years of remaining life | D63: =RAB!D78 -> 51 | E63: =RAB!E78 -> 50 | F63: =RAB!F78 -> 49 | G63: =RAB!G78 -> 48 | H63: =RAB!H78 -> 47 | I63: =RAB!I78 -> 46 | J63: =RAB!J78 -> 45 | L63: n/a | M63: 4.2.2(3)(b)adj
A64: Adjusted depreciation | D64: =D62/D63 -> 0 | E64: 0 | F64: 0 | G64: 0 | H64: =H62/H63 -> 0 | I64: 0 | J64: 0 | L64: n/a | M64: 4.2.2(2)(b)adj
A65: ="RAB of asset commissioned in year ending " & C61 -> RAB of asset commissioned in year ending 2027 | D65: =IF($C61=D$23,D$24,0) -> 0 | E65: =IF($C61=E$23,E$24,0) -> 0 | F65: =IF($C61=F$23,F$24,0) -> 0 | G65: 0 | H65: =IF($C61=H$23,H$24,0) -> 0 | I65: 0 | J65: 45010.91881
A66: Closing RAB, adjusted depreciation | D66: =D62-D64+D65 -> 0 | E66: 0 | F66: 0 | G66: 0 | H66: =H62-H64+H65 -> 0 | I66: 0 | J66: 45010.91881 | L66: =L60 -> n/a | M66: =M60 -> 4.2.1(5)(b)
A67: Total assets commissioned
A68: Total adjusted depreciation of commissioned assets | D68: =D28+D34+D40+D46+D52+D58+D64 -> 0 | E68: =E28+E34+E40+E46+E52+E58+E64 -> 0 | F68: 843.3227374 | G68: 1759.288598 | H68: =H28+H34+H40+H46+H52+H58+H64 -> 2836.192822 | I68: 3751.681384 | J68: 4722.027336 | K68: spec | L68: n/a
A69: Adjusted depreciation of existing assets
A70: BBAR year ending in calendar year: | C70: =C$4 -> 2020 | D70: =D$4 -> 2021 | E70: =E$4 -> 2022 | F70: 2023 | G70: 2024 | H70: =H$4 -> 2025 | I70: 2026 | J70: 2027
A71: Opening RAB value of existing assets, adjusted depreciation | C71: =IF(EarlyBaseYear,C10,"~") -> ~ | D71: =IF(EarlyBaseYear,C75,D10) -> 0 | E71: =D75 -> 17178.44369 | F71: =E75 -> 15990.47572 | G71: 14811.30114 | H71: =G75 -> 13643.53439 | I71: 12489.48002 | J71: 11350.62192 | L71: n/a | M71: 4.2.1(2)(b)
A72: Disposed assets | D72: =D9 -> 1634.348379 | E72: 466.0617575 | F72: 477.7133014 | G72: 488.2229941 | H72: =H9 -> 497.987454 | I72: 507.947203 | J72: 518.1061471
A73: Adjusted depreciation of existing assets | C73: =IF(EarlyBaseYear,C11,"~") -> ~ | D73: =IF(EarlyBaseYear,D71/D17,D11) -> 0 | E73: =E71/E17 -> 721.9062164 | F73: 701.4612789 | G73: 679.5437521 | H73: 656.0669207 | I73: 630.9108927 | J73: 603.8866017 | L73: n/a | M73: 4.2.2(2)(a)(ii)
A74: Base year commissioned assets | D74: =D6 -> 18812.79207
A75: Closing RAB value of existing assets, adjusted depreciation | C75: =IF(EarlyBaseYear,C71-C72-C73+C74,"~") -> ~ | D75: =D71-D72-D73+D74 -> 17178.44369 | E75: =E71-E72-E73 -> 15990.47572 | F75: 14811.30114 | G75: 13643.53439 | H75: 12489.48002 | I75: 11350.62192 | J75: 10228.62917 | L75: n/a | M75: 4.2.1(3)(b)adj
A76: Regulatory tax asset value
A77: BBAR year ending in calendar year: | C77: =C$4 -> 2020 | D77: =D$4 -> 2021 | E77: =E$4 -> 2022 | F77: 2023 | G77: 2024 | H77: =H$4 -> 2025 | I77: 2026 | J77: 2027
A78: Average DV rate | C78: =IF(EarlyBaseYear,C12/C13,"~") -> ~ | D78: =IF(EarlyBaseYear,C78,D12/D13) -> 0.1094220274 | L78: 4.3.3(3)(b) | M78: 4.3.5(3)(b)
A79: Opening regulatory tax asset value | C79: =IF(EarlyBaseYear,C13,"~") -> ~ | D79: =IF(EarlyBaseYear,C82,D13) -> 205340.1339 | E79: =D82 -> 201684.1922 | F79: =E82 -> 216721.6995 | G79: 233310.0696 | H79: =G82 -> 255164.5947 | I79: 267525.4641 | J79: 280947.5074 | L79: 4.3.3(a)(ii) | M79: 4.3.5(3)(a)
A80: Tax depreciation | C80: =IF(EarlyBaseYear,C12,"~") -> ~ | D80: =D79*$D78 -> 22468.73376 | E80: =E79*$D78 -> 22068.6932 | F80: 23714.12773 | G80: 25529.26082 | H80: =H79*$D78 -> 27920.62726 | I80: 29273.17866 | J80: 30741.84584 | L80: 4.3.3(2)(b) | M80: 4.3.5(2)(b)
A81: Value of commissioned assets | C81: =IF(EarlyBaseYear,C6,"~") -> ~ | D81: =D6 -> 18812.79207 | E81: 37106.20045 | F81: 40302.49786 | G81: 47383.78588 | H81: 40281.49669 | I81: 42695.22192 | J81: 45010.91881 | K81: simple ref
A82: Closing regulatory tax asset value | C82: =IF(EarlyBaseYear,C79-C80+C81,"~") -> ~ | D82: =D79-D80+D81 -> 201684.1922 | E82: =E79-E80+E81 -> 216721.6995 | F82: 233310.0696 | G82: 255164.5947 | H82: =H79-H80+H81 -> 267525.4641 | I82: 280947.5074 | J82: 295216.5803 | L82: 4.3.3(3)(c) | M82: 4.3.5(3)(c)(i)
A83: Depreciation temporary differences
A84: BBAR year ending in calendar year: | C84: =C$4 -> 2020 | D84: =D$4 -> 2021 | E84: =E$4 -> 2022 | F84: 2023 | G84: 2024 | H84: =H$4 -> 2025 | I84: 2026 | J84: 2027
A85: Total adjusted depreciation of assets | C85: =IF(EarlyBaseYear,C68+C73,"~") -> ~ | D85: =D68+D73 -> 0 | E85: 721.9062164 | F85: 1544.784016 | G85: 2438.83235 | H85: 3492.259743 | I85: 4382.592276 | J85: 5325.913938
A86: Tax depreciation | C86: =C80 -> ~ | D86: 22468.73376 | E86: 22068.6932 | F86: 23714.12773 | G86: 25529.26082 | H86: 27920.62726 | I86: 29273.17866 | J86: 30741.84584 | K86: simple ref
A87: Depreciation temporary differences, deferred tax approach | C87: =IF(EarlyBaseYear,C85-C86,"~") -> ~ | D87: =D85-D86 -> -22468.73376 | E87: -21346.78699 | F87: -22169.34372 | G87: -23090.42847 | H87: =H85-H86 -> -24428.36752 | I87: -24890.58638 | J87: -25415.9319 | L87: n/a | M87: 4.3.5(1)
A88: Deductions for regulatory tax purposes
A89: Amortisation of initial differences in asset values | C89: =IF(EarlyBaseYear,B8,"~") -> ~ | D89: =$B$8 -> 0 | E89: 0 | F89: 0 | G89: 0 | H89: =$B$8 -> 0 | I89: 0 | J89: 0 | K89: simple ref | L89: n/a
A90: Notional deductible interest | F90: =(F20*$D$16*$D$15+F19)/(1+$D$15)^0.5 -> 16617.91386 | G90: 17038.87181 | H90: 17512.47237 | I90: 17796.46686 | J90: 18097.08251 | L90: 4.3.4(1) | M90: 4.3.3(2)
A91: Amortisation of revaluations | F91: =F18-F85 -> 37941.64425 | G91: 38972.06065 | H91: 39924.51624 | I91: 40833.81217 | J91: 41782.58765 | L91: n/a | M91: 4.3.3(5)
A92: Regulatory tax adjustments | F92: =F89+F91-F90 -> 21323.73039 | G92: 21933.18884 | H92: =H89+H91-H90 -> 22412.04387 | I92: 23037.34531 | J92: 23685.50514 | L92: n/a | M92: 4.3.3(1)
A93: Deferred tax asset value
A94: BBAR year ending in calendar year: | C94: =C$4 -> 2020 | D94: =D$4 -> 2021 | E94: =E$4 -> 2022 | F94: 2023 | G94: 2024 | H94: =H$4 -> 2025 | I94: 2026 | J94: 2027
A95: Opening deferred tax | C95: =IF(EarlyBaseYear,C14,"~") -> ~ | D95: =IF(EarlyBaseYear,C98,D14) -> 0 | E95: =D98 -> -6291.245452 | F95: =E98 -> -12268.34581 | G95: -18475.76205 | H95: =G98 -> -24941.08202 | I95: -31781.02493 | J95: -38750.38911 | K95: simple ref | L95: n/a | M95: 4.3.4(1)(b)
A96: Depreciation temporary differences, deferred tax approach | C96: =C87 -> ~ | D96: -22468.73376 | E96: -21346.78699 | F96: -22169.34372 | G96: -23090.42847 | H96: -24428.36752 | I96: -24890.58638 | J96: -25415.9319 | K96: simple ref
A97: Amortisation of initial differences in asset values | C97: =C89 -> ~ | D97: 0 | E97: 0 | F97: 0 | G97: 0 | H97: 0 | I97: 0 | J97: 0 | K97: simple ref
A98: Closing deferred tax | C98: =IF(EarlyBaseYear,C95+(C96-C97)*C5,"~") -> ~ | D98: =D95+(D96-D97)*D5 -> -6291.245452 | E98: =E95+(E96-E97)*E5 -> -12268.34581 | F98: -18475.76205 | G98: -24941.08202 | H98: -31781.02493 | I98: -38750.38911 | J98: -45866.85005 | L98: n/a | M98: 4.3.4(2)
A99: Outputs
A100: BBAR year ending in calendar year: | C100: =C$4 -> 2020 | D100: =D$4 -> 2021 | E100: =E$4 -> 2022 | F100: 2023 | G100: 2024 | H100: =H$4 -> 2025 | I100: 2026 | J100: 2027
A101: Opening deferred tax | E101: =E95 -> -6291.245452 | F101: =F95 -> -12268.34581 | G101: -18475.76205 | H101: =H95 -> -24941.08202 | I101: -31781.02493 | J101: -38750.38911 | K101: simple ref
A102: Closing deferred tax | F102: =F98 -> -18475.76205 | G102: -24941.08202 | H102: =H98 -> -31781.02493 | I102: -38750.38911 | J102: -45866.85005 | K102: simple ref
A103: Regulatory tax adjustments | F103: =F92 -> 21323.73039 | G103: 21933.18884 | H103: 22412.04387 | I103: 23037.34531 | J103: 23685.50514 | K103: simple ref
A104: Tax depreciation | F104: =F80 -> 23714.12773 | G104: 25529.26082 | H104: 27920.62726 | I104: 29273.17866 | J104: 30741.84584 | K104: simple ref
A105: Notional deductible interest | F105: =F90 -> 16617.91386 | G105: 17038.87181 | H105: =H90 -> 17512.47237 | I105: 17796.46686 | J105: 18097.08251 | K105: simple ref

Sheet BBAR
A1: Building blocks allowable revenue | B1: Values, not time series | C1: Early base year | D1: Std base year | E1: Gap year | F1: 1st BBAR year | G1: 2nd BBAR year | H1: 3rd BBAR year | I1: 4th BBAR year | J1: 5th BBAR year | L1: Spec ref | M1: IM ref
A2: Calculation of BBAR present value, opening investment value, and TCSD allowance.
A3: Inputs | J3: =GPB_name -> First Gas transmission
A4: Tax payable (payable) or deferred tax (deferred) | B4: ='GPB data'!B29 -> payable
A5: Vanilla WACC (67th percentile) | B5: =WACC -> 0.0614
A6: Term credit spread differential allowance | C6: ='GPB data'!C41 -> ~ | D6: ='GPB data'!D41 -> 1271.216537 | L6: GPB data
A7: BBAR year ending in calendar year: | D7: ='GPB data'!D18 -> 2021 | E7: ='GPB data'!E18 -> 2022 | F7: ='GPB data'!F18 -> 2023 | G7: ='GPB data'!G18 -> 2024 | H7: ='GPB data'!H18 -> 2025 | I7: ='GPB data'!I18 -> 2026 | J7: ='GPB data'!J18 -> 2027 | L7: GPB data
A8: Corporate tax rate | F8: ='GPB data'!F23 -> 0.28 | G8: ='GPB data'!G23 -> 0.28 | H8: ='GPB data'!H23 -> 0.28 | I8: ='GPB data'!I23 -> 0.28 | J8: ='GPB data'!J23 -> 0.28 | L8: GPB data
A9: Other regulated income | F9: ='GPB data'!F95 -> 0 | G9: ='GPB data'!G95 -> 0 | H9: ='GPB data'!H95 -> 0 | I9: ='GPB data'!I95 -> 0 | J9: ='GPB data'!J95 -> 0 | L9: GPB data
A11: Value of commissioned assets | F11: ='GPB data'!F76 -> 40302.49786 | G11: ='GPB data'!G76 -> 47383.78588 | H11: ='GPB data'!H76 -> 40281.49669 | I11: ='GPB data'!I76 -> 42695.22192 | J11: ='GPB data'!J76 -> 45010.91881 | L11: GPB data
A12: Operating expenditure | F12: ='GPB data'!F55 -> 53512.75174 | G12: ='GPB data'!G55 -> 55336.41136 | H12: ='GPB data'!H55 -> 56654.08304 | I12: ='GPB data'!I55 -> 58465.28188 | J12: ='GPB data'!J55 -> 59738.56089 | L12: GPB data
A13: Day prior to start of the regulatory period | B13: ='GPB data'!B14 -> 2022-09-30 | L13: GPB data
A14: TFmid | F14: =Timing!F30 -> 1.030158596 | G14: =Timing!G30 -> 1.03024269 | H14: =Timing!H30 -> 1.030158596 | I14: =Timing!I30 -> 1.030158596 | J14: =Timing!J30 -> 1 | L14: TIMING
A15: TFtax | F15: =Timing!F31 -> 1.030158596 | G15: =Timing!G31 -> 1.03024269 | H15: =Timing!H31 -> 1.030158596 | I15: =Timing!I31 -> 1.030158596 | J15: =Timing!J31 -> 1 | L15: TIMING
A16: TFrev | F16: =Timing!F32 -> 1.024456298 | G16: =Timing!G32 -> 1.024555464 | H16: =Timing!H32 -> 1.024456298 | I16: =Timing!I32 -> 1.024456298 | J16: =Timing!J32 -> 0.9944646401 | L16: TIMING
A17: Aggregate opening RAB value | C17: =RAB!C100 -> ~ | D17: =RAB!D100 -> 849688.0929 | E17: =RAB!E100 -> 874464.5955 | F17: =RAB!F100 -> 918012.4732 | G17: =RAB!G100 -> 941267.1758 | H17: =RAB!H100 -> 967429.9796 | I17: =RAB!I100 -> 983118.5001 | J17: =RAB!J100 -> 999725.2127 | L17: RAB
A18: Closing RAB, 4th BBAR year | B18: =RAB!B102 -> 1017077.807
A19: Total revaluation | F19: =RAB!F101 -> 22916.34634 | G19: =RAB!G101 -> 20678.13393 | H19: =RAB!H101 -> 19321.78726 | I19: =RAB!I101 -> 19635.8423 | J19: =RAB!J101 -> 19968.28356 | L19: RAB
A20: Total depreciation | F20: =RAB!F99 -> 39486.42827 | G20: =RAB!G99 -> 41410.893 | H20: =RAB!H99 -> 43416.77598 | I20: =RAB!I99 -> 45216.40444 | J20: =RAB!J99 -> 47108.50158 | L20: RAB
A21: Opening deferred tax | E21: =Tax!E101 -> -6291.245452 | F21: =Tax!F101 -> -12268.34581 | G21: =Tax!G101 -> -18475.76205 | H21: =Tax!H101 -> -24941.08202 | I21: =Tax!I101 -> -31781.02493 | J21: =Tax!J101 -> -38750.38911 | L21: TAX
A22: Closing deferred tax | F22: =Tax!F102 -> -18475.76205 | G22: =Tax!G102 -> -24941.08202 | H22: =Tax!H102 -> -31781.02493 | I22: =Tax!I102 -> -38750.38911 | J22: =Tax!J102 -> -45866.85005 | L22: TAX
A23: Regulatory tax adjustments | F23: =Tax!F103 -> 21323.73039 | G23: =Tax!G103 -> 21933.18884 | H23: =Tax!H103 -> 22412.04387 | I23: =Tax!I103 -> 23037.34531 | J23: =Tax!J103 -> 23685.50514 | L23: TAX
A24: Tax depreciation | F24: =Tax!F104 -> 23714.12773 | G24: =Tax!G104 -> 25529.26082 | H24: =Tax!H104 -> 27920.62726 | I24: =Tax!I104 -> 29273.17866 | J24: =Tax!J104 -> 30741.84584 | L24: TAX
A25: Notional deductible interest | F25: =Tax!F105 -> 16617.91386 | G25: =Tax!G105 -> 17038.87181 | H25: =Tax!H105 -> 17512.47237 | I25: =Tax!I105 -> 17796.46686 | J25: =Tax!J105 -> 18097.08251 | L25: TAX
A26: Proportion of BBAR year in the regulatory period | F26: =Timing!F29 -> 1 | G26: =Timing!G29 -> 1 | H26: =Timing!H29 -> 1 | I26: =Timing!I29 -> 1 | J26: =Timing!J29 -> 0 | L26: =Notes!A6 -> 1
A27: Number of BBAR days in the BBAR period | F27: =Timing!F28 -> 365 | G27: =Timing!G28 -> 366 | H27: =Timing!H28 -> 365 | I27: =Timing!I28 -> 365 | J27: =Timing!J28 -> 0 | L27: TIMING
A28: Calculations
A29: BBAR year ending in calendar year: | D29: =D$7 -> 2021 | E29: =E$7 -> 2022 | F29: 2023 | G29: 2024 | H29: =H$7 -> 2025 | I29: 2026 | J29: 2027 | L29: simple ref
A30: Cumulative number of days from start of regulatory period to end of BBAR period | E30: 0 | F30: =E30+F27 -> 365 | G30: 731 | H30: 1096 | I30: 1461 | J30: 1461 | L30: =Notes!A7 -> 2
A31: PV factor from end of each BBAR period | F31: =(1+WACC)^(-1*F30/365) -> 0.9421518749 | G31: 0.8875052521 | H31: =(1+WACC)^(-1*H30/365) -> 0.8361647372 | I31: 0.7877941749 | J31: 0.7877941749 | L31: =Notes!A8 -> 3
A32: Term credit spread differential allowance
A34: Asset base scaling factor | D34: =IF(EarlyBaseYear,D17/$C$17,D17/$D$17) -> 1 | E34: 1.029159527 | F34: 1.080411131 | G34: 1.107779647 | H34: 1.138570715 | I34: 1.157034573 | J34: 1.176579054 | L34: =Notes!A9 -> 4
A35: Term credit spread differential allowance, full BBAR years | C35: =C6 -> ~ | D35: =IF(EarlyBaseYear,$C35*D34,D6) -> 1271.216537 | E35: =IF(EarlyBaseYear,$C35,$D35)*E34 -> 1308.28461 | F35: 1373.436497 | G35: 1408.227807 | H35: 1447.369922 | I35: 1470.841484 | J35: 1495.686751 | L35: =Notes!A10 -> 5
A36: Return on capital
A37: BBAR year ending in calendar year: | D37: =D$7 -> 2021 | E37: =E$7 -> 2022 | F37: 2023 | G37: 2024 | H37: =H$7 -> 2025 | I37: 2026 | J37: 2027 | L37: simple ref
A38: Opening investment value (full BBAR year values) | E38: =E17+IF($B$4="deferred",E21,0) -> 874464.5955 | F38: =F17+IF($B$4="deferred",F21,0) -> 918012.4732 | G38: 941267.1758 | H38: 967429.9796 | I38: 983118.5001 | J38: 999725.2127 | L38: =Notes!A11 -> 6
A39: Opening investment value, start of regulatory period | B39: =G38-F26*(G38-F38) -> 918012.4732 | L39: =Notes!A12 -> 7
A40: Closing investment value, end of 5th BBAR year | B40: =B18+IF($B$4="deferred",J22,0) -> 1017077.807 | L40: =Notes!A13 -> 7
A41: Closing investment value, end of regulatory period | B41: =J38+J26*(B40-J38) -> 999725.2127 | L41: =Notes!A14 -> 8
A42: Opening investment value for each BBAR period | F42: =B39 -> 918012.4732 | G42: =G38 -> 941267.1758 | H42: =H38 -> 967429.9796 | I42: =I38 -> 983118.5001 | J42: =J38 -> 999725.2127 | L42: =Notes!A15 -> 9
A43: Value of commissioned assets, after accounting for part year effects | F43: =F11*F26 -> 40302.49786 | G43: 47383.78588 | H43: 40281.49669 | I43: 42695.22192 | J43: 0 | L43: =Notes!A16 -> 10
A44: Term credit spread differential allowance, after accounting for part year effects | F44: =F35*F26 -> 1373.436497 | G44: 1408.227807 | H44: 1447.369922 | I44: 1470.841484 | J44: 0 | L44: =Notes!A16 -> 10
A45: Total revaluation, after accounting for part year effects | F45: =F19*F26 -> 22916.34634 | G45: 20678.13393 | H45: 19321.78726 | I45: 19635.8423 | J45: 0 | L45: =Notes!A16 -> 10
A46: WACC adjusted for full and part years | F46: =(1+WACC)^(F27/365)-1 -> 0.0614 | G46: 0.06157329509 | H46: 0.0614 | I46: 0.0614 | J46: 0 | L46: =Notes!A$18 -> 12
A47: Return on capital, after accounting for part year effects | F47: =F42*F46+F43*(F$14-1)+F44-F45 -> 36038.52277 | G47: 40120.02859 | H47: =H42*H46+H43*(H$14-1)+H44-H45 -> 42740.6168 | I47: 43486.10305 | J47: 0 | L47: =Notes!A19 -> 13
A48: Operating expenditure
A49: BBAR year ending in calendar year: | F49: =F$7 -> 2023 | G49: 2024 | H49: =H$7 -> 2025 | I49: 2026 | J49: 2027 | L49: simple ref
A50: Operating expenditure, after accounting for part year effects | F50: =F12*F26 -> 53512.75174 | G50: 55336.41136 | H50: 56654.08304 | I50: 58465.28188 | J50: 0 | L50: =Notes!$A$16 -> 10
A51: Building block allowable revenue before tax, after accounting for part year effects, deferred tax approach | G51: The next 12 lines are greyed out when a supplier to which a deferred tax approach does not apply.
A52: BBAR year ending in calendar year: | F52: =F$7 -> 2023 | G52: 2024 | H52: =H$7 -> 2025 | I52: 2026 | J52: 2027 | L52: simple ref
A53: Increase in deferred tax asset, ΔDT | F53: =F22-F21 -> -6207.416241 | G53: -6465.319973 | H53: -6839.942906 | I53: -6969.364186 | J53: -7116.460933 | L53: 11
A54: Increase in deferred tax asset, ΔDT, after accounting for part year effects | F54: =F53*F26 -> -6207.416241 | G54: -6465.319973 | H54: -6839.942906 | I54: -6969.364186 | J54: 0 | L54: 10
A55: Other regulated income, after accounting for part year effects | F55: =F9*F26 -> 0 | G55: 0 | H55: 0 | I55: 0 | J55: 0 | L55: =Notes!A$16 -> 10
A56: Depreciation, after accounting for part year effects | F56: =F20*F26 -> 39486.42827 | G56: 41410.893 | H56: 43416.77598 | I56: 45216.40444 | J56: 0 | L56: =Notes!A$16 -> 10
A57: Regulatory tax adjustments, after accounting for part year effects | F57: =F23*F26 -> 21323.73039 | G57: 21933.18884 | H57: 22412.04387 | I57: 23037.34531 | J57: 0 | L57: =Notes!A$16 -> 10
A58: BBAR before tax in revenue date terms, calculation not referencing tax | F58: =(F47+F56*(1-F8*F15)+F50*(F14-F8*F15)-F55*(F14-F8*F15)+F54*(F15-1)+F57*F8*F15)/(F16-F8*F15) -> 149168.7622 | G58: =(G47+G56*(1-G8*G15)+G50*(G14-G8*G15)-G55*(G14-G8*G15)+G54*(G15-1)+G57*G8*G15)/(G16-G8*G15) -> 158627.6763 | H58: 165640.7335 | I58: 170458.4212 | J58: 0 | L58: =Notes!A$20 -> 14
A59: Regulatory tax allowance before considering possibility of tax losses | F59: =(F58+F55-F50-F56+F57)*F8 -> 21698.12753 | G59: 23467.79703 | H59: 24634.93715 | I59: 25147.94244 | J59: 0 | L59: =Notes!A21 -> 15
A60: Regulatory tax allowance | F60: =IF(AND(F59<0,$B$4="deferred"),#N/A,F59) -> 21698.12753 | G60: 23467.79703 | H60: =IF(AND(H59<0,$B$4="deferred"),#N/A,H59) -> 24634.93715 | I60: 25147.94244 | J60: 0 | L60: =Notes!A22 -> 16
A61: BBAR before tax in BBAR period-end terms, direct simple calculation | F61: =F47+F56+F50*F14+(F60+F54)*F$15-F55*F$14-F54 -> 152816.8779 | G61: =G47+G56+G50*G14+(G60+G54)*G$15-G55*G$14-G54 -> 162522.8525 | H61: 169691.6926 | I61: 174627.203 | J61: 0 | L61: =Notes!A23 -> 17
A62: BBAR before tax in revenue date terms | F62: =F61/F$16 -> 149168.7622 | G62: 158627.6763 | H62: =H61/H$16 -> 165640.7335 | I62: 170458.4212 | J62: 0 | L62: =Notes!A24 -> 18
A63: Difference between the two BBAR calculations (should = 0) | F63: =F58-F62 -> 0 | G63: 0 | H63: =H58-H62 -> 0 | I63: 0 | J63: 0 | L63: =Notes!A25 -> 19
A64: Building block allowable revenue before tax, after accounting for part year effects, tax payable approach | G64: The next 12 lines are greyed out when a supplier to which a tax payable approach does not apply.
A65: BBAR year ending in calendar year: | F65: =F$7 -> 2023 | G65: 2024 | H65: =H$7 -> 2025 | I65: 2026 | J65: 2027 | L65: simple ref
A66: Other regulated income, after accounting for part year effects | F66: =F9*F26 -> 0 | G66: 0 | H66: 0 | I66: 0 | J66: 0 | L66: =Notes!$A$16 -> 10
A67: Depreciation, after accounting for part year effects | F67: =F20*F26 -> 39486.42827 | G67: 41410.893 | H67: 43416.77598 | I67: 45216.40444 | J67: 0 | L67: =Notes!$A$16 -> 10
A68: Tax depreciation | F68: =F24*F26 -> 23714.12773 | G68: 25529.26082 | H68: 27920.62726 | I68: 29273.17866 | J68: 0 | L68: =Notes!$A$16 -> 10
A69: Notional deductible interest | F69: =F25*F26 -> 16617.91386 | G69: 17038.87181 | H69: 17512.47237 | I69: 17796.46686 | J69: 0 | L69: =Notes!$A$16 -> 10
A70: Depreciation temporary differences, tax payable approach | F70: =F67-F68 -> 15772.30053 | G70: 15881.63217 | H70: =H67-H68 -> 15496.14872 | I70: 15943.22579 | J70: 0 | L70: =Notes!A26 -> 20 | M70: 4.3.3(1)
A71: BBAR before tax in revenue date terms, calculation not referencing tax | F71: =(F47+F67*(1-F8*F15)+F50*(F14-F8*F15)-F66*(F14-F8*F15)+(F70-F69)*F8*F15)/(F16-F8*F15) -> 140734.909 | G71: =(G47+G67*(1-G8*G15)+G50*(G14-G8*G15)-G66*(G14-G8*G15)+(G70-G69)*G8*G15)/(G16-G8*G15) -> 149844.3185 | H71: 156347.483 | I71: 160989.3293 | J71: 0 | L71: =Notes!A28 -> 22
A72: Regulatory tax allowance before considering possibility of tax losses | F72: =(F71+F66-F50-F67+F70-F69)*F8 -> 13129.2324 | G72: 14543.13687 | H72: 15192.88409 | I72: 15527.23254 | J72: 0 | L72: =Notes!A29 -> 23 | M72: 4.3.1
A73: Regulatory tax allowance | F73: =IF(AND(F72<0,$B$4="payable"),#N/A,F72) -> 13129.2324 | G73: 14543.13687 | H73: 15192.88409 | I73: 15527.23254 | J73: 0 | L73: =Notes!A22 -> 16
A74: BBAR before tax in BBAR period-end terms, direct simple calculation | F74: =F47+F67+F50*F14+(F73)*F$15-F66*F$14 -> 144176.7639 | G74: =G47+G67+G50*G14+(G73)*G$15-G66*G$14 -> 153523.8153 | H74: 160171.1636 | I74: 164926.5323 | J74: 0 | L74: =Notes!A28 -> 22
A75: BBAR before tax in revenue date terms | F75: =F74/F$16 -> 140734.909 | G75: 149844.3185 | H75: =H74/H$16 -> 156347.483 | I75: 160989.3293 | J75: 0 | L75: =Notes!A24 -> 18
A76: Difference between the two BBAR calculations (should = 0) | F76: =F71-F75 -> 0 | G76: 0 | H76: =H71-H75 -> 0 | I76: 0 | J76: 0 | L76: =Notes!A25 -> 19
A77: Parameters dependent on whether a deferred tax or tax payable approach applied
A78: BBAR before tax in BBAR period-end terms | F78: =IF($B$4="deferred",F61,F74) -> 144176.7639 | G78: 153523.8153 | H78: =IF($B$4="deferred",H61,H74) -> 160171.1636 | I78: =IF($B$4="deferred",I61,I74) -> 164926.5323 | J78: 0 | L78: =Notes!A30 -> 24
A79: BBAR before tax in revenue date terms | F79: =IF($B$4="deferred",F58,F71) -> 140734.909 | G79: 149844.3185 | H79: =IF($B$4="deferred",H58,H71) -> 156347.483 | I79: 160989.3293 | J79: 0 | L79: =Notes!A$30 -> 24
A80: Tax allowance in period-end terms | F80: =IF($B$4="deferred",F60,F73)*F15 -> 13525.19161 | G80: 14982.96045 | H80: 15651.08015 | I80: 15995.51208 | J80: 0 | L80: =Notes!A$31 -> 25
A81: Tax payable | F81: =IF($B$4="deferred",F54+F60,F73) -> 13129.2324 | G81: 14543.13687 | H81: =IF($B$4="deferred",H54+H60,H73) -> 15192.88409 | I81: 15527.23254 | J81: 0 | L81: =Notes!A$32 -> 26
A82: Present value of the building block allowable revenue before tax
A83: BBAR year ending in calendar year: | B83: Value | F83: =F$7 -> 2023 | G83: 2024 | H83: =H$7 -> 2025 | I83: 2026 | J83: 2027 | L83: simple ref
A84: BBAR before tax in BBAR period-end terms | F84: =F78 -> 144176.7639 | G84: 153523.8153 | H84: 160171.1636 | I84: 164926.5323 | J84: 0 | L84: simple ref
A85: ="PV at " & TEXT(B13, "dd-mmm-yy") & " BBAR before tax for each BBAR period" -> PV at 30-Sep-22 BBAR before tax for each BBAR period | F85: =F84*F31 -> 135836.4084 | G85: =G84*G31 -> 136253.1924 | H85: 133929.4789 | I85: 129928.1614 | J85: =J84*J31 -> 0 | L85: =Notes!A33 -> 27
A86: ="PV at " & TEXT(B13, "dd-mmm-yy") & " of total BBAR before tax" -> PV at 30-Sep-22 of total BBAR before tax | B86: =SUM(F85:J85) -> 535947.2411 | L86: =Notes!A34 -> 28
A87: Outputs
A88: BBAR year ending in calendar year: | B88: Value | F88: =F$7 -> 2023 | G88: 2024 | H88: =H$7 -> 2025 | I88: 2026 | J88: 2027 | L88: simple ref
A89: Present value of BBAR as at the start of the regulatory period | B89: =B86 -> 535947.2411 | L89: simple ref
A90: Opening investment value at start of regulatory period | B90: =B39 -> 918012.4732 | L90: simple ref
A91: Closing investment value at end of regulatory period | B91: =B41 -> 999725.2127 | L91: simple ref
A92: Term credit spread differential allowance, full BBAR years | F92: =F35 -> 1373.436497 | G92: 1408.227807 | H92: 1447.369922 | I92: 1470.841484 | J92: 1495.686751 | L92: simple ref
A93: BBAR before tax in revenue date terms | F93: =F79 -> 140734.909 | G93: 149844.3185 | H93: 156347.483 | I93: 160989.3293 | J93: 0 | L93: simple ref
A94: Opening investment value (full BBAR year values) | E94: =E38 -> 874464.5955 | F94: 918012.4732 | G94: 941267.1758 | H94: 967429.9796 | I94: 983118.5001 | J94: 999725.2127 | L94: simple ref
A95: Total capital charge

Sheet Rev
A1: Revenue growth index | D1: Values, not time series | F1: 1st revenue year | G1: 2nd revenue year | H1: 3rd revenue year | I1: 4th revenue year | L1: Spec ref
A2: Calculation of the normalised profile of the maximum allowable revenue before tax values.
A3: Inputs | I3: =GPB_name -> First Gas transmission
A4: Pricing year ending in calendar year: | E4: ='GPB data'!E18 -> 2022 | F4: ='GPB data'!F18 -> 2023 | G4: ='GPB data'!G18 -> 2024 | H4: ='GPB data'!H18 -> 2025 | I4: ='GPB data'!I18 -> 2026 | L4: GPB data
A5: Constant price revenue growth | G5: ='GPB data'!G66 -> 0 | H5: ='GPB data'!H66 -> 0 | I5: ='GPB data'!I66 -> 0 | L5: GPB data
A6: Industry-wide X factor | D6: ='GPB data'!B11 -> 0 | L6: GPB data
A7: Alternative X factor | D7: ='GPB data'!B44 -> -0.0324834029 | L7: GPB data
A9: Forecast changes in the CPI element of the price path, no lag | G9: ='GPB data'!G27 -> 0.02324453846 | H9: ='GPB data'!H27 -> 0.02024799149 | I9: ='GPB data'!I27 -> 0.02
A10: Total revenue cap (TRC) or weighted average price cap (WAPC) | D10: ='GPB data'!B30 -> TRC_FQ | L10: GPB data
A11: Calculations
A13: ="Index of price path with industry-wide X factor of "&TEXT(D6,"#0.0%") -> Index of price path with industry-wide X factor of 0.0%
A14: Pricing year ending in calendar year: | F14: =F$4 -> 2023 | G14: =G$4 -> 2024 | H14: =H$4 -> 2025 | I14: =I$4 -> 2026 | L14: simple ref
A15: X value applied, i.e. industry-wide X factor | D15: =D6 -> 0 | L15: simple ref
A16: Index of cumulative CPI minus X changes | F16: 1 | G16: =F16*(1+G$9)*(1-$D$15) -> 1.023244538 | H16: =G16*(1+H$9)*(1-$D$15) -> 1.043963185 | I16: 1.064842449 | L16: =Notes!A37 -> 100
A17: Index of constant price growth for weighted average price cap | F17: 1 | G17: =F17*(1+G$5) -> 1 | H17: =G17*(1+H$5) -> 1 | I17: =H17*(1+I$5) -> 1 | L17: =Notes!A38 -> 101
A18: Indexed maximum allowable revenue before tax | F18: 1 | G18: =IF($D$10="WAPC",G16*G17,IF($D$10="TRC_FQ",G16,#N/A)) -> 1.023244538 | H18: =IF($D$10="WAPC",H16*H17,IF($D$10="TRC_FQ",H16,#N/A)) -> 1.043963185 | I18: =IF($D$10="WAPC",I16*I17,IF($D$10="TRC_FQ",I16,#N/A)) -> 1.064842449 | L18: =Notes!A39 -> 102
A19: ="CPI minus X revenues with applicable X factor (" & IF(ISNUMBER(D7),"alternate X factor of " & TEXT(D7,"#0.0%"), "industry-wide X factor of " & TEXT(D6,"#0.0%"))&")" -> CPI minus X revenues with applicable X factor (alternate X factor of -3.2%)
A20: Pricing year ending in calendar year: | F20: =F$4 -> 2023 | G20: =G$4 -> 2024 | H20: =H$4 -> 2025 | I20: =I$4 -> 2026 | L20: simple ref
A21: X value applied, i.e. alternative X factor if applicable | D21: =IF(D7="blank",D6,D7) -> -0.0324834029
A22: Index of cumulative CPI minus X changes | F22: 1 | G22: =F22*(1+G$9)*(1-$D$21) -> 1.056483003 | H22: =G22*(1+H$9)*(1-$D$21) -> 1.112887699 | I22: 1.17201884 | L22: =Notes!A37 -> 100
A23: Index of constant price growth for weighted average price cap | F23: 1 | G23: =F23*(1+G$5) -> 1 | H23: =G23*(1+H$5) -> 1 | I23: =H23*(1+I$5) -> 1 | L23: =Notes!A38 -> 101
A24: Indexed maximum allowable revenue before tax | F24: 1 | G24: =IF($D$10="WAPC",G22*G23,IF($D$10="TRC_FQ",G22,#N/A)) -> 1.056483003 | H24: =IF($D$10="WAPC",H22*H23,IF($D$10="TRC_FQ",H22,#N/A)) -> 1.112887699 | I24: =IF($D$10="WAPC",I22*I23,IF($D$10="TRC_FQ",I22,#N/A)) -> 1.17201884 | L24: =Notes!A39 -> 102
A25: Outputs
A26: Pricing year ending in calendar year: | F26: =F$4 -> 2023 | G26: =G$4 -> 2024 | H26: =H$4 -> 2025 | I26: =I$4 -> 2026 | L26: simple ref
A27: Indexed maximum allowable revenue before tax—industry wide X factor | F27: =F18 -> 1 | G27: =G18 -> 1.023244538 | H27: =H18 -> 1.043963185 | I27: =I18 -> 1.064842449 | L27: simple ref
A28: Indexed maximum allowable revenue before tax—applicable X factor | F28: =F24 -> 1 | G28: =G24 -> 1.056483003 | H28: =H24 -> 1.112887699 | I28: =I24 -> 1.17201884 | L28: simple ref

Sheet MAR
A1: Maximum allowable revenue | C1: Values, not time series | F1: 1st Revenue year | G1: 2nd Revenue year | H1: 3rd Revenue year | I1: 4th Revenue year | K1: Spec ref
A2: Calculation of starting prices.
A3: Inputs | I3: =GPB_name -> First Gas transmission | K3: Simple ref
A4: Pricing year ending in calendar year: | F4: ='GPB data'!F18 -> 2023 | G4: ='GPB data'!G18 -> 2024 | H4: ='GPB data'!H18 -> 2025 | I4: ='GPB data'!I18 -> 2026 | K4: GPB data
A5: Year in regulatory period | F5: 1 | G5: =F5+1 -> 2 | H5: =G5+1 -> 3 | I5: =H5+1 -> 4 | K5: GPB data
A6: Industry-wide X factor | C6: ='GPB data'!B11 -> 0 | K6: GPB data
A7: Alternative X factor | C7: ='GPB data'!B44 -> -0.0324834029 | K7: GPB data
A8: Vanilla WACC (67th percentile) | C8: =WACC -> 0.0614 | K8: GPB data
A9: TFrev | C9: =Timing!C27 -> 1.024456298 | K9: TIMING
A10: Constant price revenue growth in year ending 2022 | C10: ='GPB data'!E66 -> 0 | K10: GPB data
A11: Constant price revenue growth in year ending 2023 | C11: ='GPB data'!F66 -> 0 | K11: GPB data
A12: PV at 30 Sep 2022 of BBAR before tax over the regulatory period | C12: =BBAR!B89 -> 535947.2411 | K12: BBAR
A13: Indexed maximum allowable revenue before tax—industry wide X factor | F13: =Rev!F27 -> 1 | G13: =Rev!G27 -> 1.023244538 | H13: =Rev!H27 -> 1.043963185 | I13: =Rev!I27 -> 1.064842449 | K13: REV
A14: Indexed maximum allowable revenue before tax—applicable X factor | F14: =Rev!F28 -> 1 | G14: =Rev!G28 -> 1.056483003 | H14: =Rev!H28 -> 1.112887699 | I14: =Rev!I28 -> 1.17201884 | K14: REV
A15: Total revenue cap (TRC) or weighted avg price cap (WAPC) | C15: ='GPB data'!B30 -> TRC_FQ | K15: GPB data
A16: Calculations
A17: ="CPI minus X revenues with industry-wide X factor of "&TEXT(C6,"#0.0%") -> CPI minus X revenues with industry-wide X factor of 0.0%
A18: Pricing year ending in calendar year: | F18: =F$4 -> 2023 | G18: =G$4 -> 2024 | H18: =H$4 -> 2025 | I18: =I$4 -> 2026 | K18: simple ref
A19: PV at 30 Sep 2022 of BBAR before tax over the regulatory period | C19: =C12 -> 535947.2411 | K19: simple ref
A20: ="Target PV at " & TEXT(Inputs!B15, "dd mmm yyyy") & " of maximum allowable revenue before tax" -> Target PV at 30 Sep 2022 of maximum allowable revenue before tax | C20: =C19 -> 535947.2411 | K20: =Notes!A42 -> 110
A21: Indexed maximum allowable revenue before tax | F21: =F13 -> 1 | G21: =G13 -> 1.023244538 | H21: =H13 -> 1.043963185 | I21: =I13 -> 1.064842449 | K21: simple ref
A22: Present value of indexed maximum allowable revenue for each year | F22: =F21/(1+$C$8)^F$5 -> 0.9421518749 | G22: =G21/(1+$C$8)^G$5 -> 0.9082831735 | H22: =H21/(1+$C$8)^H$5 -> 0.8730677252 | I22: =I21/(1+$C$8)^I$5 -> 0.839013642 | K22: =Notes!A43 -> 111
A23: Present value of indexed revenue | C23: =SUM(F22:I22) -> 3.562516416 | K23: =Notes!A44 -> 112
A24: Maximum allowable revenue before tax in first year of the regulatory period | C24: =C20/C23 -> 150440.6376 | K24: =Notes!A45 -> 113
A25: Maximum allowable revenue before tax in year-end terms | F25: =$C24*F21 -> 150440.6376 | G25: =$C24*G21 -> 153937.5608 | H25: =$C24*H21 -> 157054.4872 | I25: =$C24*I21 -> 160195.577 | K25: =Notes!A46 -> 114
A26: Maximum allowable revenue before tax in revenue-date terms | F26: =F25/$C$9 -> 146849.2487 | G26: =G25/$C$9 -> 150262.6917 | H26: =H25/$C$9 -> 153305.2094 | I26: =I25/$C$9 -> 156371.3136 | K26: =Notes!A47 -> 115
A27: ="PV at " & TEXT(Inputs!B15, "dd mmm yyyy") & " of maximum allowable revenue before tax in year-end terms in each year" -> PV at 30 Sep 2022 of maximum allowable revenue before tax in year-end terms in each year | F27: =F25/(1+$C$8)^F5 -> 141737.9288 | G27: =G25/(1+$C$8)^G5 -> 136642.6998 | H27: =H25/(1+$C$8)^H5 -> 131344.8653 | I27: =I25/(1+$C$8)^I5 -> 126221.7473 | K27: =Notes!A48 -> 116
A28: ="PV at " &TEXT(Inputs!B15, "dd mmm yyyy") & " of maximum allowable revenue before tax" -> PV at 30 Sep 2022 of maximum allowable revenue before tax | C28: =SUM(F27:I27) -> 535947.2411 | K28: =Notes!A49 -> 117
A29: Error check for PV equivalence (should = 0) | C29: =C20-C28 -> 0 | K29: =Notes!A50 -> 118
A30: ΔD | C30: =IF(C15="WAPC",(1+$C$10)*(1+$C$11),#N/A) ->  | K30: =Notes!A51 -> 119
A31: ANR (industry-wide X-factor) pricing year ending Sep 2023, GDBs only | C31: =F26/C30 ->  | K31: =Notes!A52 -> 120
A33: Real MAR increases
A35: Nominal MAR - SPA | E35: ='GPB data'!B45 -> 131623.3864 | F35: =F26 -> 146849.2487 | G35: =G26 -> 150262.6917 | H35: 153305.2094 | I35: 156371.3136
A36: Nominal MAR increases % | F36: =F35/E35-1 -> 0.1156774849 | G36: =G35/F35-1 -> 0.02324453846 | H36: =H35/G35-1 -> 0.02024799149 | I36: =I35/H35-1 -> 0.02
A37: CPI | F37: ='GPB data'!F27 -> 0.03092122799 | G37: ='GPB data'!G27 -> 0.02324453846 | H37: ='GPB data'!H27 -> 0.02024799149 | I37: ='GPB data'!I27 -> 0.02
A38: CPRG | F38: ='GPB data'!F66 -> 0 | G38: ='GPB data'!G66 -> 0 | H38: ='GPB data'!H66 -> 0 | I38: ='GPB data'!I66 -> 0
A39: Real MAR increases SPA | F39: =F35/E35/(1+F37)/(1+F38)-1 -> 0.08221409606 | G39: =G35/F35/(1+G37)/(1+G38)-1 -> 0 | H39: 0 | I39: 0
A40: ="CPI minus X revenues with applicable X factor (" & IF(ISNUMBER(C7),"alternate X factor of " & TEXT(C7,"#0.0%"), "industry-wide X factor of " & TEXT(C6,"#0.0%"))&")" -> CPI minus X revenues with applicable X factor (alternate X factor of -3.2%)
A41: Pricing year ending in calendar year: | F41: =F$4 -> 2023 | G41: =G$4 -> 2024 | H41: =H$4 -> 2025 | I41: =I$4 -> 2026 | K41: simple ref
A42: =BBAR!A89 -> Present value of BBAR as at the start of the regulatory period | C42: =C12 -> 535947.2411 | K42: simple ref
A43: ="Target PV at " & TEXT('GPB data'!B14, "dd-mmm-yy") & " of Maximum Allowable Revenue before tax" -> Target PV at 30-Sep-22 of Maximum Allowable Revenue before tax | C43: =C42 -> 535947.2411 | K43: =Notes!A42 -> 110
A44: Indexed maximum allowable revenue before tax | F44: =F14 -> 1 | G44: =G14 -> 1.056483003 | H44: =H14 -> 1.112887699 | I44: =I14 -> 1.17201884 | K44: simple ref
A45: Present value of indexed maximum allowable revenue for each year | F45: =F44/(1+$C$8)^F$5 -> 0.9421518749 | G45: =G44/(1+$C$8)^G$5 -> 0.9377873018 | H45: =H44/(1+$C$8)^H$5 -> 0.9307093827 | I45: =I44/(1+$C$8)^I$5 -> 0.923460364 | K45: =Notes!A43 -> 111
A46: Present value of indexed revenue | C46: =SUM(F45:I45) -> 3.734108923 | K46: =Notes!A44 -> 112
A47: Maximum allowable revenue before tax in first year of the regulatory period | C47: =C43/C46 -> 143527.4793 | K47: =Notes!A45 -> 113
A48: Maximum allowable revenue before tax in year-end terms | F48: =$C47*F44 -> 143527.4793 | G48: =$C47*G44 -> 151634.3423 | H48: =$C47*H44 -> 159729.9661 | I48: =$C47*I44 -> 168216.9098 | K48: =Notes!A46 -> 114
A49: Maximum allowable revenue before tax in revenue-date terms | F49: =F48/$C$9 -> 140101.1245 | G49: =G48/$C$9 -> 148014.4567 | H49: =H48/$C$9 -> 155916.818 | I49: =I48/$C$9 -> 164201.1574 | K49: =Notes!A47 -> 115
A50: ="PV at " & TEXT('GPB data'!B14, "dd-mmm-yy") & " of maximum allowable revenue before tax in year-end terms in each year" -> PV at 30-Sep-22 of maximum allowable revenue before tax in year-end terms in each year | F50: =F48/(1+$C$8)^F$5 -> 135224.6837 | G50: =G48/(1+$C$8)^G$5 -> 134598.2475 | H50: =H48/(1+$C$8)^H$5 -> 133582.3716 | I50: =I48/(1+$C$8)^I$5 -> 132541.9383 | K50: =Notes!A48 -> 116
A51: ="PV at " & TEXT('GPB data'!B14, "dd-mmm-yy") & " of maximum allowable revenue before tax" -> PV at 30-Sep-22 of maximum allowable revenue before tax | C51: =SUM(F50:I50) -> 535947.2411 | K51: =Notes!A49 -> 117
A52: Error check for PV equivalence (should = 0) | C52: =C43-C51 -> 0 | K52: =Notes!A50 -> 118
A53: ΔD | C53: =IF(C15="WAPC",(1+$C$10)*(1+$C$11),#N/A) ->  | K53: =Notes!A51 -> 119
A54: ANR (industry-wide X-factor) pricing year ending Sep 2023, GDBs only | C54: =F49/C53 ->  | K54: =Notes!A52 -> 120
A55: This data block uses the applicable 2022/23 X factor to calculate the maximum allowable revenues for the regulatory period. These allowed
A56: revenues are PV-equivalent to the corresponding revenues calculated with the industry-wide X factor in the previous data block.
A58: Real MAR increases
A60: Nominal MAR - SPA | E60: ='GPB data'!B45 -> 131623.3864 | F60: =F49 -> 140101.1245 | G60: =G49 -> 148014.4567 | H60: 155916.818 | I60: 164201.1574
A61: Nominal MAR increases % | F61: =F60/E60-1 -> 0.06440905607 | G61: =G60/F60-1 -> 0.05648300307 | H61: 0.05338911805 | I61: 0.05313307096
A62: CPI | F62: ='GPB data'!F27 -> 0.03092122799 | G62: ='GPB data'!G27 -> 0.02324453846 | H62: ='GPB data'!H27 -> 0.02024799149 | I62: ='GPB data'!I27 -> 0.02
A63: CPRG | F63: ='GPB data'!F66 -> 0 | G63: ='GPB data'!G66 -> 0 | H63: ='GPB data'!H66 -> 0 | I63: ='GPB data'!I66 -> 0
A64: Real MAR increases SPA | F64: =F60/E60/(1+F62)/(1+F63)-1 -> 0.03248340142 | G64: =G60/F60/(1+G62)/(1+G63)-1 -> 0.0324834029 | H64: 0.0324834029 | I64: 0.0324834029
A65: Goal-sought number to be equal to zero | F65: =Real_MAR-AVERAGE($G$64:$I$64) -> -1.477566437e-09
A67: Outputs
A68: Pricing year ending in calendar year:
A69: Maximum allowable revenue before tax in revenue-date terms for industry wide X factor | F69: =F$4 -> 2023 | G69: =G$4 -> 2024 | H69: =H$4 -> 2025 | I69: =I$4 -> 2026 | K69: simple ref
A70: Maximum allowable revenue before tax in revenue-date terms for applicable X factor | F70: =F26 -> 146849.2487 | G70: =G26 -> 150262.6917 | H70: =H26 -> 153305.2094 | I70: =I26 -> 156371.3136 | K70: simple ref
A71: Starting price for industry-wide X factor | F71: =F49 -> 140101.1245 | G71: =G49 -> 148014.4567 | H71: =H49 -> 155916.818 | I71: =I49 -> 164201.1574 | K71: simple ref
A72: Starting price for applicable X factor | F72: =F26 -> 146849.2487 | K72: simple ref
A73: ="PV at " & TEXT('GPB data'!B14, "dd-mmm-yy") & " of MAR before tax over the regulatory period (applicable X )" -> PV at 30-Sep-22 of MAR before tax over the regulatory period (applicable X ) | F73: =F49 -> 140101.1245 | K73: simple ref
A74: ΔD | F74: =C43 -> 535947.2411 | K74: simple ref
A75: ANR (industry-wide X-factor) pricing year ending Sep 2023, GDBs only | F75: =IF(Outputs!B7>4,"",C53) ->  | K75: simple ref
F76: =IF(Outputs!B7>4,"",C54) ->  | K76: simple ref
A78: DPP3 Real MAR increases | F78: =F$4 -> 2023 | G78: =G$4 -> 2024 | H78: =H$4 -> 2025 | I78: =I$4 -> 2026
A79: Nominal MAR - SPA | E79: =IF($F$39<0.1,E35,E60) -> 131623.3864 | F79: =IF($F$39<0.1,F35,F60) -> 146849.2487 | G79: 150262.6917 | H79: 153305.2094 | I79: 156371.3136
A80: Nominal MAR increases % | E80: =IF($F$39<0.1,E36,E61) -> 0 | F80: 0.1156774849 | G80: 0.02324453846 | H80: 0.02024799149 | I80: 0.02
A81: CPI | E81: =IF($F$39<0.1,E37,E62) -> 0 | F81: 0.03092122799 | G81: 0.02324453846 | H81: 0.02024799149 | I81: 0.02
A82: CPRG | E82: =IF($F$39<0.1,E38,E63) -> 0 | F82: 0 | G82: 0 | H82: 0 | I82: 0
A83: Real MAR increases SPA | E83: =IF($F$39<0.1,E39,E64) -> 0 | F83: 0.08221409606 | G83: 0 | H83: 0 | I83: 0
A84: Rate of Change | F84: =IF($F$39<0.1,G83,G83)*-1 -> 0
A85: ΔD | F85: =IFERROR(IF($F$39<0.1,C30,C53),"") -> 
A86: ANR pricing year ending Sep 2021, GDB only | F86: =IFERROR(IF($F$39<0.1,C31,C54),"") -> 

Sheet Outputs
A1: DPP reset output table
A3: Run macro to derive X factor for equivalent MAR increases
A5: This worksheet uses Excel's data table facility to display the calculated results for all suppliers.
A6: Chosen supplier | B6: =GPB_name -> First Gas transmission
A7: Supplier number | B7: =Inputs!C4 -> 5
A8: tax timing | B8: tax date mid-period
B9: Active GDB outputs | C9: =Inputs!B22 -> GasNet | D9: =Inputs!C22 -> Powerco | E9: =Inputs!D22 -> Vector | F9: =Inputs!E22 -> First Gas distribution | G9: =Inputs!F22 -> First Gas transmission
A10: Supplier number | B10: =B7 -> 5 | C10: =Inputs!B23 -> 1 | D10: =Inputs!C23 -> 2 | E10: =Inputs!D23 -> 3 | F10: =Inputs!E23 -> 4 | G10: =Inputs!F23 -> 5
A11: Outputs | C11: 0 | D11: 0 | E11: 0 | F11: 0 | G11: 0
A12: PV of BBAR at 30 September 2022 | B12: =BBAR!B89 -> 535947.2411 | C12: 18451.14682 | D12: 219420.1573 | E12: 188936.9925 | F12: 108593.8406 | G12: 535947.2411
A13: Starting price for industry-wide X factor | B13: =MAR!F72 -> 146849.2487 | C13: 4985.480924 | D13: 57885.77704 | E13: 50043.89993 | F13: 29147.22213 | G13: 146849.2487
A14: Starting price for applicable X factor | B14: =MAR!F73 -> 140101.1245 | C14: 4751.242611 | D14: 56072.20338 | E14: 52451.50801 | F14: 27199.9094 | G14: 140101.1245
A15: PV at 30 September 2022 of MAR (applicable X) | B15: =MAR!F74 -> 535947.2411 | C15: 18451.14682 | D15: 219420.1573 | E15: 188936.9925 | F15: 108593.8406 | G15: 535947.2411
A16: MAR (industry-wide X factor), pricing period ending 2023 | B16: =MAR!F70 -> 146849.2487 | C16: 4985.480924 | D16: 57885.77704 | E16: 50043.89993 | F16: 29147.22213 | G16: 146849.2487
A17: MAR (industry-wide X factor), pricing period ending 2024 | B17: =MAR!G70 -> 150262.6917 | C17: 5199.510114 | D17: 61381.14098 | E17: 52900.68695 | F17: 30535.45444 | G17: 150262.6917
A18: MAR (industry-wide X factor), pricing period ending 2025 | B18: =MAR!H70 -> 153305.2094 | C18: 5309.707996 | D18: 63701.02313 | E18: 54763.23076 | F18: 31326.15735 | G18: 153305.2094
A19: MAR (industry-wide X factor), pricing period ending 2026 | B19: =MAR!I70 -> 156371.3136 | C19: 5403.741111 | D19: 65852.43989 | E19: 56505.26275 | F19: 32030.32361 | G19: 156371.3136
A20: MAR (applicable X factor), pricing period ending 2023 | B20: =MAR!F60 -> 140101.1245 | C20: 4751.242611 | D20: 56072.20338 | E20: 52451.50801 | F20: 27199.9094 | G20: 140101.1245
A21: MAR (applicable X factor), pricing period ending 2024 | B21: =MAR!G60 -> 148014.4567 | C21: 5119.124565 | D21: 60740.31947 | E21: 53684.25766 | F21: 29846.10305 | G21: 148014.4567
A22: MAR (applicable X factor), pricing period ending 2025 | B22: =MAR!H60 -> 155916.818 | C22: 5400.538046 | D22: 64395.40554 | E22: 53808.82522 | F22: 32070.32279 | G22: 155916.818
A23: MAR (applicable X factor), pricing period ending 2026 | B23: =MAR!I60 -> 164201.1574 | C23: 5677.982478 | D23: 68005.91769 | E23: 53756.64501 | F23: 34345.55134 | G23: 164201.1574
A24: MAR for Consumer Price Bill 2023 | B24: =TRANSPOSE(MAR!F79:I79) -> 146849.2487 | C24: 4985.480924 | D24: 57885.77704 | E24: 50043.89993 | F24: 27199.9094 | G24: 146849.2487
A25: MAR for Consumer Price Bill 2024 | B25: 150262.6917 | C25: 5199.510114 | D25: 61381.14098 | E25: 52900.68695 | F25: 29846.10305 | G25: 150262.6917
A26: MAR for Consumer Price Bill 2025 | B26: 153305.2094 | C26: 5309.707996 | D26: 63701.02313 | E26: 54763.23076 | F26: 32070.32279 | G26: 153305.2094
A27: MAR for Consumer Price Bill 2026 | B27: 156371.3136 | C27: 5403.741111 | D27: 65852.43989 | E27: 56505.26275 | F27: 34345.55134 | G27: 156371.3136
A28: BBAR before tax, for the BBAR period ending 2023 | B28: =BBAR!F93 -> 140734.909 | C28: 3595.965723 | D28: 57378.4471 | E28: 36724.89287 | F28: 27655.0406 | G28: 140734.909
A29: BBAR before tax, for the BBAR period ending 2024 | B29: =BBAR!G93 -> 149844.3185 | C29: 5086.91302 | D29: 61158.53302 | E29: 52350.05077 | F29: 30094.23806 | G29: 149844.3185
A30: BBAR before tax, for the BBAR period ending 2025 | B30: =BBAR!H93 -> 156347.483 | C30: 5345.129304 | D30: 64219.11445 | E30: 54909.13214 | F30: 32104.01825 | G30: 156347.483
A31: BBAR before tax, for the BBAR period ending 2026 | B31: =BBAR!I93 -> 160989.3293 | C31: 5484.387781 | D31: 66186.46723 | E31: 55913.47485 | F31: 33499.31068 | G31: 160989.3293
A32: ΔD | B32: =MAR!F85 ->  | C32: 0.9960710203 | D32: 1.02808399 | E32: 1.029725685 | F32: 1.027441951
A33: ANR 2023 (applicable X-factor) | B33: =MAR!F86 ->  | C33: 5005.146041 | D33: 56304.52145 | E33: 48599.25382 | F33: 26473.42693
A34: MAR 2022 Forecast Nominal $ | B34: =MAR!E79 -> 131623.3864 | C34: 4383.998268 | D34: 51435.56862 | E34: 50702.2772 | F34: 24646.15131 | G34: 131623.3864
A35: Real MAR % | B35: =MAR!F83 -> 0.08221409606 | C35: 0.08400921327 | D35: 0.05460694567 | E35: -0.07621271289 | F35: 0.04740094109 | G35: 0.08221409606
A36: Adjustment Factor | B36: =RAB!B12 -> 1 | C36: 1 | D36: 1 | E36: 1 | F36: 1 | G36: 1
A37: Rate of Change | B37: =MAR!F84 -> 0 | C37: 0 | D37: 0 | E37: 0 | F37: -0.04740094103 | G37: 0
A38: Implied rate of change with alternative X factor | B38: =Real_MAR*-1 -> -0.03248340142 | C38: -0.03307802068 | D38: -0.02156588662 | E38: 0.0317693794 | F38: -0.04740094109 | G38: -0.03248340142
A39: Implied real price increase with one-off SPA | B39: =MAR!F39 -> 0.08221409606 | C39: 0.08400921327 | D39: 0.05460694567 | E39: -0.07621271289 | F39: 0.1223871169 | G39: 0.08221409606

Sheet Notes
A1: Model notes
A3: Ref # | B3: Description | C3: Calculation method | D3: Input methodology reference, rationale, reference or other justification for the calculation method
A5: BBAR sheet
A6: 1 | B6: Proportion of BBAR year in the regulatory period | C6: Number of BBAR months in the regulatory period / 12 | D6: Standard calculation for a proportion.
A7: =A6+1 -> 2 | B7: Cumulative number of days from start of regulatory period to end of BBAR period | C7: Zero in the gap year, otherwise equals the previous year's value + Number of BBAR days in the BBAR period | D7: Standard calculation for a cumulative value
A8: =A7+1 -> 3 | B8: PV factor from end of each BBAR period | C8: (1+WACC)^(-1*Cumulative number of days from start of regulatory period to end of BBAR period/365) | D8: Standard present value formula for the present value factor for a period of "n" years.
A9: 4 | B9: Asset base scaling factor | C9: Aggregate opening RAB value in each BBAR period / Aggregate opening RAB value in the base year | D9: IM paragraph 4.4.9(2) sets the TCSD allowance at a × b ÷ c. The asset base scaling factor is the b ÷ c in this formula.
A10: 5 | B10: Term credit spread differential allowance | C10: Term credit spread differential allowance * Asset base scaling factor | D10: TCSD allowance is calculated according to IM 4.4.9(2) by this formula. See definition of the asset base scaling factor above.
A11: 6 | B11: Opening investment value (full BBAR year values) | C11: Opening RAB + if the tax allowance is on a deferred tax basis, add the deferred tax balance, otherwise do not add anything to the RAB. | D11: Note that while this is according to the IMs, it is in part used for some calculations not covered by the IMs.
A12: 7 | B12: Opening investment value at the start of the regulatory period | C12: Opening value at the start of the regulatory period calculated by linear interpolation of the values at the opening and closing of the first BBAR year.
A13: =A11+1 -> 7 | B13: =BBAR!A40 -> Closing investment value, end of 5th BBAR year | C13: Closing RAB plus, if a deferred tax approach is being applied, the closing deferred tax
A14: =A12+1 -> 8 | B14: Closing investment value at the end of the regulatory period | C14: Closing value at the end of the regulatory period calculated by linear interpolation of the values at the opening and closing of the last BBAR year.
A15: 9 | B15: Opening investment value at the start of each BBAR period | C15: ="Opening value at the start of each full 12 month BBAR year, except for the first BBAR period, for which the opening value is the interpolated value as described at Item " & A12 & " above" -> Opening value at the start of each full 12 month BBAR year, except for the first BBAR period, for which the opening value is the interpolated value as described at Item 7 above | D15: Simple reference, except that the first year formula is different
A16: 10 | B16: Pro-rata of an annual value into the value for a part-year by multiplying by the proportion of the length of the part year to a full year | C16: Multiply the annual value by the proportion of BBAR year in the regulatory period
A17: 11 | B17: Change in deferred tax | C17: Difference between the closing and opening deferred tax for the full BBAR year | D17: Sign convention adopted is positive value indicates an increase, and positive deferred tax balance is an asset for the supplier. This is implicit in the tax input methodology.
A18: 12 | B18: WACC adjusted for full and part years | C18: (1+WACC)^(-1*Number of days in the BBAR period/365)-1
A19: 13 | B19: Return on capital | C19: Regulatory investment value * WACC plus value of additional assets * (mid-year timing factor -1) plus TCSD less revaluations | D19: See paragraph 34 of Attachment A of the model specification.
A20: 14 | B20: BBAR before tax in revenue date terms, calculation not referencing tax, deferred tax approach | C20: BBAR formula per Attachment A, Equation 14 of the model specification | D20: Attachment A to the model specification contains an algebraic derivation of a formula that calculates the BBAR from a number of variables. See Equation 14 for the deferred tax case, and Attachment B Equation 26 for the tax payable case. The variables do not include the tax allowance or the BBAR itself, and so breaks a circularity that could otherwise exist in calculating both the tax allowance and BBAR.
A21: 15 | B21: Regulatory tax allowance before considering possibility of tax losses | C21: Regulatory net taxable income * corporate tax rate | D21: See Attachment A, Equation 5. Developed as a formula from IM provisions.
A22: 16 | B22: Regulatory tax allowance | C22: Regulatory tax allowance multiplied by the tax rate, except that if regulatory taxable income is negative (which is not expected to occur), then the #N/A error value shall be returned, which will poison all dependent formulas to all levels with #N/A to alert the workbook user to the tax loss issue. | D22: This approach allows some simplification of the financial model. In effect we assume tax losses arise for no supplier in any BBAR period. In the event of tax losses occurring they will be flagged by the "poisoning" of the results. Note that the derivation of the BBAR formula in the attachments to the model specification relies on no tax losses arising.
A23: 17 | B23: BBAR before tax in period-end terms, direct simple calculation, deferred tax approach | C23: BBAR formula per Attachment A, Equation 10 of the model specification | D23: See Attachment A. Developed as a formula from the NPV=0 equation.
A24: 18 | B24: BBAR before tax in revenue date terms | C24: BBAR in year end terms divided by the revenue timing factor to determine BBAR in revenue date terms | D24: Formula, as discussed in the model specification, for adjusting from a year-end value to a cash flow date value
A25: 19 | B25: Difference between the two BBAR calculations | C25: ="Difference between the BBAR calculated using the formula that does not reference tax and the BBAR formula that does reference tax." -> Difference between the BBAR calculated using the formula that does not reference tax and the BBAR formula that does reference tax. | D25: The difference should be zero. This a check value to flag potential errors in the calculation of BBAR.
A26: 20 | B26: Depreciation temporary differences, tax payable approach | D26: IM reference 4.3.3(1)
A27: 21 | B27: BBAR before tax in revenue date terms, calculation not referencing tax, tax payable approach | C27: BBAR formula per Attachment B of the model specification | D27: Attachment B to the model specification contains an algebraic derivation of a formula that calculates the BBAR from a number of variables. See Equation 26. These variables do not include the tax allowance or the BBAR itself, and so breaks a circularity that could otherwise exist in calculating both the tax allowance and BBAR.
A28: 22 | B28: BBAR before tax in period-end terms, direct simple calculation, tax payable approach | C28: BBAR formula per Attachment B, Equation 24 of the model specification | D28: See Attachment B. Developed as a formula from the NPV=0 equation.
A29: 23 | B29: Regulatory tax allowance before considering possibility of tax losses | C29: Regulatory tax allowance before considering possibility of tax losses | D29: See Attachment B, Equation 19. Developed as a formula from IM provisions.
A30: 24 | B30: Formula for selecting between outputs that are dependent upon choice of tax approach | C30: Formula used for four tax parameters that depend upon whether a deferred tax or a tax payable approach is used.
A31: 25 | B31: Tax allowance in period-end terms | C31: Formula used for tax allowance, according to whether a deferred tax or a tax payable approach is used. Multiplied by the tax timing factor for the BBAR period to produce the BBAR in BBAR period-end terms
A32: 26 | B32: Tax payable amount. selecting between outputs that are dependent upon choice of tax approach and provides formula for one of them. Needs tidying. | C32: Formula for tax payable, that depends upon whether a deferred tax or a tax payable approach is used. If deferred tax, then tax payable is calculated as the tax allowance plus the increase in deferred tax | D32: If the tax payable approach is used, then the tax payable cash flow is the tax allowance. If the deferred tax approach is used then (per Equation 7 of Attachment A of the model specification), tax payable is the tax allowance plus the increase in deferred tax.
A33: 27 | B33: PV at 30-Sep-22 of each full year's BBAR before tax | C33: BBAR before tax in year-end terms x PV factor from end of each BBAR period to the start of the regulatory period | D33: Present values the BBAR period-end value to the start of the regulatory period
A34: 28 | B34: PV at 30-Sep-22 of BBAR before tax | C34: Simple sum of the series of present values for each BBAR
A36: REV sheet
A37: 100 | B37: Index of cumulative CPI-X changes | C37: equals 1 for first year of reg period, thereafter equals previous year's value x (1+∆CPI)(1-X)
A38: =A37+1 -> 101 | B38: Index of constant price growth | C38: equals 1 for first year of reg period, thereafter equals previous year's value x (1+CPRG)
A39: =A38+1 -> 102 | B39: Indexed maximum allowable revenue before tax | C39: If a WAPC applies, then this index is the index of cumulative CPI-X changes multiplied by the index of constant price revenue growth. If a revenue cap applies, then this index is equal to the index of cumulative CPI-X changes.
A41: MAR sheet
A42: 110 | B42: PV as at 30 Sep 2022 of maximum allowable revenue before tax | C42: The present value of BBARs plus any additional allowance
A43: =A42+1 -> 111 | B43: Present value, as at 30-9-22, of the indexed MAR of each assessment year | C43: Each year's index of MAR, expressed as a year-end value divided by the (1+WACC) to the power of the number of years
A44: =A43+1 -> 112 | B44: Total present value, as at 30-9-22, of all the MAR indices of the 5 pricing years | C44: Simple sum of each of the 5 individual year present values
A45: 113 | B45: Formula for calculating the MAR for the first year of the regulatory period | C45: Equal to the total present value of BBAR, plus any 'additional allowance', all divided by the present value of the indexed revenue
A46: 114 | B46: Maximum allowable revenue before tax in year-end terms | C46: Indexed MAR scaled up such that the first year MAR equals its calculated value
A47: 115 | B47: Maximum allowable revenue before tax in revenue-date terms | C47: Maximum allowable revenue before tax in year-end terms divided by the revenue timing factor
A48: 116 | B48: For each assessment year, the PV as at 30 Sep 2022 of maximum allowable revenue before tax in year-end terms | C48: Each year's MAR, expressed as a year-end value divided by the (1+ the discount rate) to the power of the number of years
A49: 117 | B49: PV at 30 Sep 2022 of maximum allowable revenue before tax | C49: Simple sum of each of the 5 individual year present values
A50: 118 | B50: Error check for PV equivalence (should = 0) | C50: The present value of BBARs plus any additional allowance compared with the present value of MARs, all as at 30-9-22
A51: 119 | B51: ΔD | C51: 1 plus CPRG for the first assessment year multiplied by the same parameter for the prior year. Not applicable if pure revenue cap applies, in which case #N/A is returned. | D51: ∆D is effectively the conversion factor between MAR and allowable notional revenue. Takes into account the change in quantities during the lag period in the WAPC.
A52: 120 | B52: ANR 2023 | C52: MAR for the assessment year ending 2023 divided by ∆D
A56: Ref # | B56: Name used in input methodologies | C56: Name used within the financial model | D56: Comments
B57: Forecast aggregate value of disposed assets | C57: Value of disposed assets
B58: Aggregate closing RAB value for existing assets | C58: Closing RAB value for existing assets
